Cogmind - Beta 17 @@@ ROGUE MODE // 2026.07.15 @ 15:01:39 Player: Petvaria Result: Destroyed by Alpha 7 with Multirail Performance ------------- Evolutions (8) 4000 Regions Visited (31) 6200 Robots Destroyed (518) 2590 Value Destroyed (27532) 27532 Prototype IDs (253) 5060 Alien Tech Used (5) 1000 Bonus (47427) 47427 TOTAL SCORE: 93809 Bonus ------- Triggered High Security 1500 High Alert Combat Kills 9857 Follower Combat Kills 5975 Prayed to X0-1V1 5000 Major X0-1V1 Interference 11850 Subatomizer Sterilization 3000 Entered Garrisons 1200 Used RIF Installer 3000 Aligned with FarCom 300 Met Data Miner 300 Used Data Conduit 3000 Scanned by Researcher 500 Pursued by Intercept 1000 Met Sigix 2000 Friendly Fire -1055 Cogmind --------- Core Integrity 0/1370 Matter 241/300 Energy 1100/1100 System Corruption 3% Temperature Cool (0) Movement Core (50) Location -2/Section 7 Parts ------- > --- POWER (3) -------- (None) > --- PROPULSION (6) --- (None) > --- UTILITY (8) ------ (None) > --- WEAPON (6) ------- (None) > --- INVENTORY (7) ---- Medium Storage Unit Large Storage Unit Microwarp Drive Improved Potential Cannon Peak State ------------ > --- POWER ------------ Quantum Reactor Quantum Reactor Light Quantum Reactor > --- PROPULSION ------- Improved Heavy Siege Treads Biometal Heavy Treads Advanced Heavy Siege Treads > --- UTILITY ---------- Advanced Cooling System Huge Storage Unit Experimental Salvage Targeting Computer Improved Weapon Cycler Centrium Medium Armor Plating Graphene Brace Advanced Remote Force Field X0-1V1's Piety Tracker > --- WEAPON ----------- Wave Gun Coil Gun KE Penetrator Hypercooled Linear Accelerator Sigix Broadsword > --- INVENTORY -------- Reinforced Fission Core Matter Drive Enhanced Armored Medium Treads Enhanced Armored Medium Treads Experimental Thermal Generator Advanced Cooling System Experimental Coolant Injector Experimental Coolant Injector Advanced Matter Compressor Improved Transmission Jammer Experimental Thermal Defense Suite EM Shield Experimental EM Disruption Field Advanced Force Field Relay Coupler [NC] Relay Coupler [Grunt] Long-range Tractor Beam Dimensional Node Initializer High-powered Transdimensional Reconstructor Plasma Rifle HERF Cannon Coil Gun Micro-nuke Launcher Advanced Remote Datajack Field Lobotomy Kit [Rating: 212] Favorites ----------- Power Quantum Reactor Engine Reinforced Deuterium Engine Power Core Reinforced Fission Core Reactor Quantum Reactor Propulsion Light Treads Treads Light Treads Leg Improved Titanium Leg Flight Unit Nuclear Pulse Thruster Utility Huge Storage Unit Device X0-1V1's Piety Tracker Storage Huge Storage Unit Processor Experimental Salvage Targeting Computer Hackware Relay Coupler [Grunt] Protection Centrium Medium Armor Plating Artifact Microwarp Drive Weapon KE Penetrator Energy Gun Beamcaster Energy Cannon Advanced Beam Cannon Ballistic Gun KE Penetrator Ballistic Cannon Hypercooled Linear Accelerator Launcher Missile Launcher Special Weapon Remote Datajack Slashing Weapon Sigix Broadsword Special Melee Weapon Chaos Jack Build | -11 -10 -10 -9 -9 -9 -8 -8 -8 -7 -7 -7 -7 -7 -7 -6 -6 -6 -6 -5 -5 -5 -5 -5 -4 -4 -3 -3 -3 -2 -2 -2 ------- Run | Yrd Mat Min Mat Min Exi Min Mat Sto Fac Was Fac Gar Fac Gar Fac Low Low Dat Pro Fac Gar Fac Gar Fac Gar Res Qua Gar Res Tes Sec Slots Evolved 16 | . . . 2 . . . 2 . 2 . . . . . 2 . . . . 2 . . . 2 . 2 . . 2 . . Power 1 | . . . . . . . . . . . . . . . . . . . . . . . . . . 1 . . . . . Propulsion 4 | . . . 1 . . . 1 . 1 . . . . . . . . . . . . . . . . . . . 1 . . Utility 7 | . . . 1 . . . . . . . . . . . 1 . . . . 2 . . . 1 . 1 . . 1 . . Weapon 4 | . . . . . . . 1 . 1 . . . . . 1 . . . . . . . . 1 . . . . . . . Parts Attached 343 | 7 13 1 31 1 1 7 11 10 9 9 10 5 4 13 17 7 13 4 4 2 27 9 11 . 7 11 30 7 33 23 6 Power 42 | 1 2 . 3 1 . 1 1 2 1 2 1 1 . 2 1 . 4 . . . 2 . . . 2 1 5 1 4 3 1 Engine 17 | 1 1 . 3 1 . 1 . 2 1 . 1 1 . . 1 . 4 . . . . . . . . . . . . . . Core 6 | . 1 . . . . . 1 . . 2 . . . . . . . . . . 1 . . . . 1 . . . . . Reactor 19 | . . . . . . . . . . . . . . 2 . . . . . . 1 . . . 2 . 5 1 4 3 1 Propulsion 70 | 2 2 . 7 . 1 . 3 3 2 3 3 . . 2 5 1 1 2 1 . 5 . 4 . 1 2 4 1 5 8 2 Treads 57 | 2 2 . 7 . 1 . 3 3 2 3 3 . . 2 5 1 1 . . . 2 . 4 . 1 2 4 1 5 3 . Leg 6 | . . . . . . . . . . . . . . . . . . 2 . . 3 . . . . . . . . 1 . Wheel . | . . . . . . . . . . . . . . . . . . . . . . . . . . . . . . . . Hover . | . . . . . . . . . . . . . . . . . . . . . . . . . . . . . . . . Flight 7 | . . . . . . . . . . . . . . . . . . . 1 . . . . . . . . . . 4 2 Utility 125 | 2 5 1 8 . . 2 6 3 1 2 3 . 3 6 5 4 5 1 1 2 14 7 5 . 1 6 13 1 10 6 2 Device 68 | 1 2 . 3 . . 2 1 2 1 1 2 . . 6 2 4 4 . 1 2 5 2 5 . 1 3 9 1 6 2 . Storage 10 | 1 2 1 1 . . . . . . . . . 1 . . . . . . . . 1 . . . . 1 . . 1 1 Processor 3 | . . . . . . . 1 . . . . . . . 1 . . . . . . . . . . . 1 . . . . Hackware 20 | . . . . . . . . . . . . . 2 . 1 . . . . . 7 4 . . . 3 . . 3 . . Protection 23 | . 1 . 4 . . . 4 1 . 1 1 . . . 1 . 1 1 . . 2 . . . . . 2 . 1 3 . Artifact 1 | . . . . . . . . . . . . . . . . . . . . . . . . . . . . . . . 1 Weapon 106 | 2 4 . 13 . . 4 1 2 5 2 3 4 1 3 6 2 3 1 2 . 6 2 2 . 3 2 8 4 14 6 1 Energy Gun 29 | 2 1 . 3 . . . . 1 . . 1 2 . 1 . 1 1 1 . . 4 . . . 1 . 3 2 3 2 . Energy Cannon 7 | . 1 . 1 . . . . 1 . . . . . . 1 . . . . . . . . . . . 1 . 1 . 1 Ballistic Gun 54 | . 2 . 9 . . 1 1 . 4 2 1 2 . 2 5 1 2 . 2 . 1 1 2 . 2 1 1 2 9 1 . Ballistic Cannon 3 | . . . . . . . . . . . 1 . . . . . . . . . . . . . . . 1 . . 1 . Launcher 5 | . . . . . . 3 . . 1 . . . . . . . . . . . . . . . . 1 . . . . . Special Weapon 6 | . . . . . . . . . . . . . 1 . . . . . . . 1 1 . . . . 1 . 1 1 . Impact Weapon . | . . . . . . . . . . . . . . . . . . . . . . . . . . . . . . . . Slashing Weapon 1 | . . . . . . . . . . . . . . . . . . . . . . . . . . . 1 . . . . Piercing Weapon . | . . . . . . . . . . . . . . . . . . . . . . . . . . . . . . . . Special Melee Weapon 1 | . . . . . . . . . . . . . . . . . . . . . . . . . . . . . . 1 . Unidentified Prototypes 26 | . 1 . 4 . . . . 2 1 1 2 . . . 1 . . . . . 1 1 . . . . 3 . 1 4 4 Corrupted Parts 7 | . . . . . . 1 . . . . . . . . . . . . . . 1 . . . . . . 1 4 . . System Corruption 34 | . . . . . . 5 . . . . . . . . . . . . . . 4 . . . . . . 6 19 . . Parts Lost 113 | . 2 . 9 1 . . 2 . 5 . 1 1 . . 2 1 4 5 6 . 3 1 1 . . . 3 . 33 23 10 Power 24 | . 1 . 3 1 . . 1 . 1 . . . . . . . 1 . 2 . 1 . . . . . 1 . 8 3 1 Propulsion 32 | . . . 3 . . . . . 2 . . . . . 2 1 1 3 1 . . . . . . . . . 7 6 6 Utility 29 | . 1 . 1 . . . 1 . 2 . 1 1 . . . . 1 . . . 1 1 . . . . 1 . 8 8 2 Weapon 28 | . . . 2 . . . . . . . . . . . . . 1 2 3 . 1 . 1 . . . 1 . 10 6 1 Highest Loss Streak 15 | . 1 . 3 1 . . 2 . 4 . 1 1 . . 1 1 1 3 3 . 1 1 1 . . . 3 . 15 8 5 To Critical Strikes 1 | . . . . . . . . . . . . . . . . . . . 1 . . . . . . . . . . . . Average Backups 24 | 3 11 15 20 23 26 26 26 26 26 26 26 26 26 25 25 26 25 24 24 21 24 25 25 24 24 25 25 25 24 19 3 Power . | . . 1 . . . . . 1 1 1 1 1 1 1 1 1 1 1 . . . 1 1 1 1 . 1 1 . . . Propulsion 2 | 2 2 2 3 4 4 4 4 4 3 3 3 3 3 2 1 1 1 . . . 1 2 2 2 2 3 2 2 2 . . Utility 12 | . 4 7 8 9 9 10 10 9 8 8 11 13 12 13 12 14 13 15 16 15 17 16 14 14 13 12 12 13 11 9 2 Weapon 5 | . 3 5 8 9 11 10 9 9 10 9 8 6 7 6 6 5 5 3 2 2 2 4 5 4 4 6 4 4 5 6 1 Tool/Special . | . . . . . . . . . . . . . . . . . . . . . . . . . . . . . . . . Unused Backups 100 | . 7 . 18 . . . 3 2 3 2 5 2 1 4 1 3 1 1 . . 7 1 5 . 2 2 11 1 6 8 4 Power 6 | . . . . . . . . . 1 2 1 . . . . . . . . . . . . . . . 1 . . 1 . Propulsion 24 | . 4 . 4 . . . . 1 . . 2 . . . . . . . . . 4 . 3 . . 1 1 . . . 4 Utility 38 | . 1 . 5 . . . 2 . . . 1 2 1 2 . 3 1 1 . . 3 . 2 . . 1 6 . 2 5 . Weapon 28 | . 2 . 9 . . . 1 1 2 . . . . 2 1 . . . . . . 1 . . 2 . 2 1 4 . . Tool/Special 4 | . . . . . . . . . . . 1 . . . . . . . . . . . . . . . 1 . . 2 . Average Slot Usage (%) 88 | . 98 100 98 98 81 99 93 99 97 92 91 91 92 99 98 92 91 85 81 63 74 87 87 88 89 89 86 84 80 67 30 Engine 5 | . 7 14 9 9 11 12 14 18 14 13 7 7 7 5 1 6 12 13 12 . . . . . . . . . . . . Core 2 | . 6 . . . . . 2 . . 1 7 7 7 5 . . . . . 5 2 5 5 5 4 9 2 . . . . Reactor 3 | . . . . . . . . . . . . . . 3 11 6 . . . . 2 5 5 5 4 4 11 14 10 10 1 Treads 20 | . 27 28 31 33 33 23 26 27 29 23 23 23 23 29 25 25 25 13 6 5 9 11 18 21 19 19 14 14 14 14 . Leg 1 | . . . . . . . . . . . . . . . . . . 7 10 5 5 11 3 . . . . . . . . Device 13 | . 7 14 11 11 11 19 9 13 13 14 21 15 11 7 5 3 11 6 11 10 11 16 18 21 19 17 18 19 18 12 7 Storage 6 | . 14 14 10 11 11 11 9 9 7 7 7 7 7 7 6 6 6 6 6 5 5 5 5 5 4 4 4 4 4 3 1 Hackware 1 | . . . . . . . . . . . . . 3 7 6 6 . . . . 3 4 . . . 6 3 . 5 3 . Protection 4 | . 6 . 9 11 11 9 6 9 6 7 1 6 6 7 6 . 1 6 1 5 3 . 3 4 4 3 2 4 1 4 . Energy Gun 5 | . 8 . 4 . . . . . . . . 5 7 6 3 1 12 13 12 5 10 5 4 5 6 1 6 6 2 3 . Energy Cannon 1 | . 12 . . . . . . 7 7 7 6 1 . . . . . . . . . . . . . . . . . . . Ballistic Gun 14 | . 6 28 20 22 3 21 23 14 13 12 15 14 10 14 19 25 17 14 13 11 7 13 16 21 22 20 15 10 11 6 . Peak Build Rating 212 | 7 21 21 34 33 33 37 42 47 56 72 76 79 79 70 84 87 85 80 86 83 132 128 130 141 148 151 201 201 212 207 142 Average Rating 94 | 4 10 20 27 32 29 35 36 40 49 66 73 77 73 61 77 83 76 76 79 70 109 121 123 140 141 143 174 194 181 161 83 On Entrance 77 | . 7 20 21 33 33 30 37 30 47 54 71 76 79 68 70 78 78 80 79 61 83 132 118 129 141 137 140 199 195 88 66 Avg Prop Armor Cover (%) 6 | . . . . . . . . . . . . . . . . . 4 6 9 10 2 5 3 . . . 5 . 11 18 18 Naked Turns 6 | . . . . . . . . . . . . . . . . . . . . . . . . . . . . . . . 6 Heaviest Build 217 | 13 33 48 104 102 102 104 103 107 117 134 134 142 141 140 139 135 139 139 138 115 142 141 151 156 164 193 211 211 196 217 43 Greatest Support 230 | 40 40 40 66 66 66 66 63 60 83 113 118 118 118 118 110 130 130 130 48 20 145 145 210 210 210 210 207 190 230 199 49 Greatest Overweight (x) 6 | . 1 1 1 1 1 2 1 1 1 1 1 1 1 1 2 1 1 3 6 5 6 . 1 . . . 1 1 1 4 3 Average Overweight (x) . | . . . . 1 1 1 1 1 1 1 1 1 1 1 1 . . 1 2 5 . . . . . . . . . . . Largest Inventory Capacity 27 | 8 15 20 27 27 27 27 27 27 27 27 27 27 27 27 27 27 27 27 27 27 27 27 27 27 27 27 27 27 27 27 17 Average Capacity 25 | 7 12 17 22 27 27 27 27 27 27 27 27 27 27 27 27 27 27 27 27 27 27 27 27 27 27 27 27 27 27 25 8 Most Carried 27 | 7 15 16 22 24 27 27 27 27 27 27 27 27 27 27 27 27 27 27 27 25 27 27 27 26 27 27 27 27 27 27 8 Average Carried 24 | 3 11 15 20 23 26 26 26 26 26 26 26 26 26 26 26 26 26 26 26 23 25 26 26 25 25 26 26 26 24 22 6 Final Capacity 27 | 8 15 20 27 27 27 27 27 27 27 27 27 27 27 27 27 27 27 27 27 27 27 27 27 27 27 27 27 27 27 7 7 Final Carried 27 | 6 14 16 22 24 27 27 26 27 27 27 27 27 27 27 27 26 27 27 24 23 27 25 27 25 27 27 27 27 25 7 7 Class Distribution -------------------- 38% | Hauler-Tank 26% | Scavenger-Tank 8% | Mutant 8% | Hauler-Mutant 6% | Scavenger-Executioner 4% | Hauler-Gunner Dominant Class ---------------- Mutant | -10/Materials Mutant | -10/Mines Mutant | -9/Materials Hauler-Mutant | -9/Mines Hauler-Mutant | -9/Exiles Hauler-Mutant | -8/Mines Hauler-Skirmisher | -8/Materials Hauler-Mutant | -8/Storage Hauler-Tank | -7/Factory Hauler-Tank | -7/Waste Hauler-Tank | -7/Factory Hauler-Tank | -7/Garrison Hauler-Tank | -7/Factory Hauler-Tank | -7/Garrison Hauler-Tank | -6/Factory Hauler-Tank | -6/Lower Caves Hauler-Tank | -6/Lower Caves Hauler-Tank | -6/Data Miner Hauler-Gunner | -5/Proximity Caves Hauler-Tank | -5/Factory Hauler-Tank | -5/Garrison Scavenger-Tank | -5/Factory Scavenger-Tank | -5/Garrison Scavenger-Tank | -4/Factory Scavenger-Executioner | -4/Garrison Scavenger-Tank | -3/Research Scavenger-Tank | -3/Quarantine Scavenger-Tank | -3/Garrison Scavenger-Tank | -2/Research Scavenger-Tank | -2/Testing Sprinter | -2/Section 7 Resources | -11 -10 -10 -9 -9 -9 -8 -8 -8 -7 -7 -7 -7 -7 -7 -6 -6 -6 -6 -5 -5 -5 -5 -5 -4 -4 -3 -3 -3 -2 -2 -2 ----------- Run | Yrd Mat Min Mat Min Exi Min Mat Sto Fac Was Fac Gar Fac Gar Fac Low Low Dat Pro Fac Gar Fac Gar Fac Gar Res Qua Gar Res Tes Sec Matter Collected 25950 | 270 264 56 1036 35 . 416 59 776 284 385 345 658 175 1053 1012 819 955 181 514 . 3413 420 1483 . 1509 424 2781 492 2372 3552 211 Remotely 5611 | . . . . . . . . 55 . . . . 57 . 521 53 . . 75 . 944 79 720 . . . 267 . 639 2201 . Salvage Created 26743 | 109 780 81 2001 104 . 438 246 553 815 49 326 1249 125 1033 487 570 481 379 267 . 1859 334 1382 . 1622 173 811 749 5265 4135 320 Parts 1201 | 3 50 12 76 3 . 17 23 31 38 1 14 48 2 44 13 13 22 11 10 . 67 25 65 . 57 7 69 17 251 193 19 Haulers Intercepted 9 | . 2 . 3 . . . . 1 . . 1 . . . 1 . . . . . . . . . . . . . . 1 . Recyclers Shooed 19 | . . . 2 . . 2 1 2 . . 3 . . . 2 . . . . . . 3 . . . . . . 2 1 1 Parts Field Recycled . | . . . . . . . . . . . . . . . . . . . . . . . . . . . . . . . . Retrieved Matter . | . . . . . . . . . . . . . . . . . . . . . . . . . . . . . . . . Parts Self-Destructed 43 | . . . . . . . . . . . . . . . . 9 22 . 12 . . . . . . . . . . . . Prevented . | . . . . . . . . . . . . . . . . . . . . . . . . . . . . . . . . Parts Restored . | . . . . . . . . . . . . . . . . . . . . . . . . . . . . . . . . Kills | -11 -10 -10 -9 -9 -9 -8 -8 -8 -7 -7 -7 -7 -7 -7 -6 -6 -6 -6 -5 -5 -5 -5 -5 -4 -4 -3 -3 -3 -2 -2 -2 ------- Run | Yrd Mat Min Mat Min Exi Min Mat Sto Fac Was Fac Gar Fac Gar Fac Low Low Dat Pro Fac Gar Fac Gar Fac Gar Res Qua Gar Res Tes Sec Combat Hostiles Destroyed 415 | . 15 6 35 2 . 13 8 8 23 . 4 22 3 21 3 10 16 4 8 . 29 4 25 . 24 2 11 10 63 45 1 Melee 4 | . . . . . . . . . . . . . . . . . . . . . . . . . . . . . 1 3 . Guns 274 | . 4 6 33 2 . 3 6 2 6 . 3 19 2 19 3 10 16 4 8 . 16 4 12 . 24 2 11 10 39 10 . Cannons 55 | . 11 . . . . . . 6 4 . 1 . . . . . . . . . . . . . . . . . 6 27 . AOE 62 | . . . 1 . . 8 2 . 13 . . 1 1 2 . . . . . . 5 . 13 . . . . . 10 5 1 Classes Destroyed 25 | 2 5 . 3 1 . . 1 1 2 1 1 1 . . . . 1 . . . 2 1 1 . . . . . . 2 . Worker 25 | . 2 . 1 . . . . 2 . . . . . . 1 . . . . . . 1 . . . . . . 6 12 . Builder 25 | . . . . . . . . . 3 . . . . . . 1 . . . . . 3 . . . . . . 3 13 2 Tunneler 3 | 2 . . . . . . 1 . . . . . . . . . . . . . . . . . . . . . . . . Hauler 9 | . 2 . 3 . . . . 1 . . 1 . . . 1 . . . . . . . . . . . . . . 1 . Recycler 20 | 1 2 . 4 . . 1 . 1 1 . 1 . . . 1 . . . . . . 1 . . . . . . 5 . 2 Operator 2 | . 1 . 1 . . . . . . . . . . . . . . . . . . . . . . . . . . . . Drone 3 | . . . . . . . 1 . . . . . . . . 1 . . 1 . . . . . . . . . . . . Watcher 5 | . . . 1 . . . . . . . . 2 . . . . . . . . . . . . . . . . 1 1 . Swarmer 92 | . 6 6 3 . . 7 3 . 5 . 1 7 . 3 . 2 10 . 4 . 4 . 9 . 5 . . 2 10 5 . Cutter 3 | . . . . . . . . . . . . . . . . . . . . . . 3 . . . . . . . . . Saboteur 1 | . . . . . . . . . . . . . . . . . . . . . . . . . . . . . . 1 . Grunt 177 | . 9 . 22 1 . 6 2 2 14 . . 12 3 10 . 8 1 . . . 9 . 11 . 16 . 2 5 27 17 . Brawler 12 | . . . . 1 . . . . 1 . . . . 1 1 . . . . . 2 . 1 . 1 . . . . 4 . Duelist 16 | . . . 3 . . . . . 1 . . . . 1 . . . . . . 7 . . . . . . 1 . 3 . Researcher 5 | . . . . . . . . . . . . . . . . . . . . . . . . . . . . . . 5 . Sentry 29 | . . . 7 . . . 2 5 1 . 2 1 . 3 1 . 1 . . . 1 1 . . 1 1 . . 1 1 . Specialist 6 | . . . . . . . . . . . . . . . . . . . . . 4 . . . . . 1 . 1 . . Hunter 32 | . . . . . . . . 1 . . . 2 . 1 1 . 2 . . . 3 . 2 . . . . 1 12 7 . Programmer 29 | . . . . . . . . . 1 . . . . 2 . . 1 . 3 . . . 2 . . 1 . . 12 6 1 Heavy 1 | . . . . . . . . . . . 1 . . . . . . . . . . . . . . . . . . . . Behemoth 3 | . . . . . . . . . . . . . . . . . . . . . . . 1 . 1 . . 1 . . . Quarantine Guard 8 | . . . . . . . . . . . . . . . . . . . . . . . . . . . 8 . . . . Enhanced Grunt 4 | . . . . . . . . . . . . . . . . . . 4 . . . . . . . . . . . . . Lightning 2 | . . . . . . . . . . . . . . . . . . . . . . . . . . . 2 . . . . Tracker 1 | . . . . . . . . . . . . . . . . . . . . . . . . . . . . . . 1 . Striker 2 | . . . . . . . . . . . . . . . . . . . . . 2 . . . . . . . . . . Master Thief 1 | . . . . . . . . . . . . . . . . . 1 . . . . . . . . . . . . . . Surgeon 1 | . . . . . . . . . . . . 1 . . . . . . . . . . . . . . . . . . . Thug 1 | . . . . . . . . . . . . 1 . . . . . . . . . . . . . . . . . . . Martyr 1 | . . . . . . . . . . 1 . . . . . . . . . . . . . . . . . . . . . Best Kill Streak 19 | 3 6 3 9 2 . 4 3 2 10 . 1 6 2 3 3 2 4 2 4 . 10 4 13 . 7 1 2 6 12 19 2 Combat Bots Only 15 | . 4 3 5 2 . 4 3 2 10 . 1 6 2 3 1 2 4 2 4 . 10 3 13 . 7 1 2 6 10 15 1 Max Kills in Single Turn 6 | 2 2 1 2 2 . 2 1 1 3 1 1 2 1 1 1 2 2 1 2 . 2 3 6 . 2 1 1 1 2 4 1 Gunslinging 1 | . . . 1 1 . . . . . . . 1 . . . . 1 . 1 . 1 1 . . 1 . . . 1 . . Exploded 6 | . . . 1 . . 2 1 . 3 . . 1 1 1 . . . . . . 1 . 6 . . . . . 2 3 1 Melee 1 | . . . . . . . . . . . . . . . . . . . . . . . . . . . . . 1 1 . Uniques/NPCs Destroyed 1 | . . . . . . . . . . . . . . . . . . 1 . . . . . . . . . . . . . Data Miner (-6/Data Miner) Combat | -11 -10 -10 -9 -9 -9 -8 -8 -8 -7 -7 -7 -7 -7 -7 -6 -6 -6 -6 -5 -5 -5 -5 -5 -4 -4 -3 -3 -3 -2 -2 -2 -------- Run | Yrd Mat Min Mat Min Exi Min Mat Sto Fac Was Fac Gar Fac Gar Fac Low Low Dat Pro Fac Gar Fac Gar Fac Gar Res Qua Gar Res Tes Sec Hostile Shots Fired 3295 | . 94 21 179 10 . 47 61 34 124 . 54 88 25 172 70 66 78 25 65 . 90 23 76 . 121 55 73 34 1049 479 82 Missed 849 | . 18 8 49 1 . 15 15 9 38 . 25 21 6 39 21 11 19 6 21 . 16 9 12 . 27 16 5 9 291 115 27 Hits 2446 | . 76 13 130 9 . 32 46 25 86 . 29 67 19 133 49 55 59 19 44 . 74 14 64 . 94 39 68 25 758 364 55 Melee 79 | . . . 1 3 . . 33 . . . . . . 1 . 3 3 . . . 2 2 . . . . . . 2 29 . Projectile 2367 | . 76 13 129 6 . 32 13 25 86 . 29 67 19 132 49 52 56 19 44 . 72 12 64 . 94 39 68 25 756 335 55 AOE 2 | . . . . . . . . . . . . . . . . . . . . . . . . . . . . . 1 1 . Critical Strikes 97 | . 1 . 2 1 . 1 1 . 3 . 1 1 1 . . 1 1 . 4 . 1 2 5 . 2 1 11 2 29 20 6 Actively Blocked 59 | . . . . . . . . . . . . . . . . . . . . . . 1 . . . . 3 2 29 20 4 Part Disruptions 4 | . . . . . . . . . . . . . . . . . . . 1 . . . . . . . . . 2 . 1 Damage Taken 40263 | . 989 109 1843 151 . 508 305 366 1224 . 498 996 299 1247 728 1058 788 876 886 . 1341 328 848 . 1241 235 1694 310 12369 7834 1192 Core 3140 | . 210 . 142 12 . 103 14 43 56 . . 64 . 84 11 . 58 50 76 . 52 22 8 . 80 . 71 10 548 876 550 Absorbed by Shields 6973 | . . . . . . . . . . . . . . 573 . 20 . . . . . . 391 . 679 209 1413 300 1982 1406 . Reduced by Siege Mode 1399 | . . . . . . . . . . . . 16 23 . . . 15 . . . 91 . 127 . 191 4 223 . 709 . . Ignored by Resistances 2522 | . . . . . . 4 . . . . . . . . . . . . . . 85 . . . . . . . 2234 199 . Regen/Repaired (Parts) 6473 | . 217 . . . . . 298 94 . 458 267 161 . . 162 40 . . . . . 162 . . . 346 97 85 2311 1477 298 Core Remaining (%) 82 | 100 . 53 . . . 58 . 87 . . . . . 94 . . . . 74 . . . 91 . 92 . . 93 . . . Volleys Fired 1235 | 3 66 9 123 5 . 30 19 29 37 18 18 81 18 73 33 31 23 18 15 . 80 42 49 . 48 19 62 30 158 97 1 Largest 7 | 2 2 2 5 2 . 2 3 3 3 1 3 3 3 3 4 5 5 5 5 . 4 4 4 . 7 5 6 4 6 4 1 Hottest 332 | 80 100 40 133 46 . 46 69 114 124 68 129 147 147 147 156 153 238 253 226 . 287 188 195 . 332 159 293 270 249 165 200 Shots Fired 3155 | 6 129 18 303 10 . 53 51 65 82 18 51 194 35 184 73 116 110 72 52 . 132 69 145 . 254 63 207 87 411 164 1 Gun 2684 | 6 71 18 303 10 . 45 49 36 45 . 33 171 27 175 58 114 106 72 52 . 88 65 136 . 253 55 184 78 329 105 . Cannon 314 | . 58 . . . . . . 29 24 18 16 19 . . 2 2 4 . . . . . . . . . 19 5 60 57 1 Launcher 76 | . . . . . . 8 2 . 13 . 2 4 . 2 . . . . . . 25 . 3 . . 1 2 . 12 2 . Special 81 | . . . . . . . . . . . . . 8 7 13 . . . . . 19 4 6 . 1 7 2 4 10 . . Kinetic 2059 | . 29 18 237 10 . 45 49 36 45 . 33 120 17 121 43 109 66 34 27 . 19 27 101 . 213 55 162 39 280 124 . Thermal 900 | 6 100 . 66 . . . . 29 24 18 16 70 10 54 17 7 44 38 25 . 69 38 35 . 40 . 41 44 70 38 1 Explosive 41 | . . . . . . 5 2 . 13 . 2 . . 2 . . . . . . . . . . . 1 2 . 12 2 . Electromagnetic 74 | . . . . . . 3 . . . . . 4 . . . . . . . . 25 . 3 . . . . . 39 . . Robot Hit Streak 39 | 5 6 2 16 6 . 18 13 20 26 11 19 18 11 10 10 14 17 17 15 . 25 17 29 . 31 39 35 10 31 15 1 Robot Miss Streak 7 | . 5 3 2 1 . 3 7 1 2 1 4 6 2 3 4 3 7 2 3 . 2 3 2 . 4 2 1 2 5 7 . Penetration Max 2 | . . . . . . . . . . . 1 1 1 1 . . . . 1 . 1 1 . . 1 . 1 1 2 1 . Secondary Targets 79 | . 1 1 6 1 . . 1 . . . . 2 . 3 . 4 5 1 4 . 9 1 1 . 13 . 1 3 18 4 . Max Gunslinging Chain 2 | . 1 1 1 1 . . 1 . . . . 1 . 1 . 1 1 1 2 . 2 1 1 . 1 . 1 1 1 1 . Shots Hit Robots 2277 | 5 73 7 200 8 . 37 29 46 62 16 31 119 27 129 48 73 70 64 32 . 101 35 110 . 200 53 157 52 336 151 6 Core Hits 1154 | 4 32 6 77 4 . 21 17 17 61 2 11 46 5 48 18 31 26 31 11 . 81 15 52 . 63 8 58 23 168 216 2 Critical Kills 59 | . . 1 . . . . . . . . 1 1 . . . . . . 1 . 1 1 . . . 1 . . 7 45 . Critical Parts Destroyed 96 | . . . . . . . . . . . 1 5 . 1 . . . . 1 . 1 . 1 . 1 . 3 . 8 74 . Critical Strikes 190 | . . 1 2 . . . . . . . 2 9 . 1 3 . 2 2 3 . 2 1 2 . 1 2 4 2 22 129 . Burn 19 | . . . 2 . . . . . . . . 3 . . 3 . 2 2 1 . . . . . . . 1 2 3 . . Meltdown 1 | . . . . . . . . . . . . 1 . . . . . . . . . . . . . . . . . . . Destroy 166 | . . 1 . . . . . . . . 2 5 . 1 . . . . 2 . 2 1 2 . 1 2 3 . 15 129 . Blast 2 | . . . . . . . . . . . . . . . . . . . . . . . . . . . . . 2 . . Corrupt 1 | . . . . . . . . . . . . . . . . . . . . . . . . . . . . . 1 . . Sever 1 | . . . . . . . . . . . . . . . . . . . . . . . . . . . . . 1 . . Melee Attacks 167 | . . . . . . . . . . . . . . . . . . 17 . . . . . . . . 6 22 51 46 25 Impact . | . . . . . . . . . . . . . . . . . . . . . . . . . . . . . . . . Slashing 162 | . . . . . . . . . . . . . . . . . . 17 . . . . . . . . 6 22 51 41 25 Piercing 5 | . . . . . . . . . . . . . . . . . . . . . . . . . . . . . . 5 . Sneak Attacks 14 | . . . . . . . . . . . . . . . . . . 1 . . . . . . . . 1 . 6 1 5 Combat Hostiles . | . . . . . . . . . . . . . . . . . . . . . . . . . . . . . . . . Follow-up Attacks . | . . . . . . . . . . . . . . . . . . . . . . . . . . . . . . . . Damage Inflicted 63175 | 65 1095 114 2582 145 . 950 796 881 2441 372 807 3132 486 2813 813 1845 1533 1185 1036 . 3799 1152 3850 . 4515 684 3795 1542 13444 5869 1434 Guns 43185 | 65 462 110 2551 145 . 493 484 353 500 . 526 2372 470 2665 711 1845 1363 1105 1036 . 2161 1000 2818 . 4515 684 3458 1487 7442 2364 . Cannons 6305 | . 598 . . . . . . 489 479 372 281 413 . . 102 . 170 . . . . . 103 . . . . 55 2036 1009 198 Explosions 9245 | . . . . . . 443 299 . 1462 . . 347 . 148 . . . . . . 1638 . 929 . . . 12 . 2201 1497 269 Melee 4102 | . . . . . . . . . . . . . . . . . . 80 . . . . . . . . 325 . 1731 999 967 Ramming 338 | . 35 4 31 . . 14 13 39 . . . . 16 . . . . . . . . 152 . . . . . . 34 . . Kinetic 32935 | . 197 110 1984 145 . 493 484 353 500 . 526 1782 305 1894 627 1715 777 618 576 . 465 621 2023 . 3844 684 2931 659 6239 2383 . Thermal 16197 | 65 863 . 567 . . . . 489 479 372 281 1104 165 771 186 130 756 487 460 . 1917 379 1439 . 671 . 527 883 1749 990 467 Explosive 5878 | . . . . . . 259 299 . 1462 . . . . 148 . . . . . . . . . . . . 12 . 2201 1497 . Electromagnetic 3725 | . . . . . . 184 . . . . . 246 . . . . . . . . 1417 . 388 . . . . . 1490 . . Impact . | . . . . . . . . . . . . . . . . . . . . . . . . . . . . . . . . Slashing 4094 | . . . . . . . . . . . . . . . . . . 80 . . . . . . . . 325 . 1731 991 967 Piercing 8 | . . . . . . . . . . . . . . . . . . . . . . . . . . . . . . 8 . Highest Corruption 37 | . . . . 5 5 10 . 4 . . . . . 2 . . 2 . 3 . 4 4 5 . 14 . 9 10 28 37 19 Average Corruption 6 | . . . . 5 5 5 . 2 . . . . . 1 . . 1 . 2 . 4 2 4 . 9 . 5 6 10 13 13 Corruption Purged 2 | . . . . . . . . . . . . . . . . . 2 . . . . . . . . . . . . . . Corruption Blocked . | . . . . . . . . . . . . . . . . . . . . . . . . . . . . . . . . Effects 341 | . . . . 4 15 32 . 4 . . . . . 12 . . 3 . 8 . 1 6 23 . 11 . 91 25 35 60 11 Message Errors 79 | . . . . 3 2 12 . . . . . . . 3 . . . . 2 . . 1 6 . 3 . 21 4 9 9 4 Matter Fused 82 | . . . . 1 5 6 . 1 . . . . . 3 . . 2 . 1 . . 3 5 . 2 . 21 8 8 12 4 Heat Flow Errors 29 | . . . . . 1 2 . 1 . . . . . 1 . . . . 1 . . . . . 1 . 14 . 2 6 . Energy Discharges 46 | . . . . . 5 3 . 2 . . . . . . . . 1 . 2 . . . 3 . 1 . 11 4 5 9 . Parts Rejected 3 | . . . . . . . . . . . . . . . . . . . . . . . 2 . 1 . . . . . . Parts Fused 3 | . . . . . 1 . . . . . . . . . . . . . 1 . . . . . . . 1 . . . . Data Loss (minor) 38 | . . . . . 1 3 . . . . . . . 2 . . . . . . . 1 3 . 1 . 10 4 3 8 2 Data Loss (major) 20 | . . . . . . 1 . . . . . . . 2 . . . . 1 . 1 1 2 . 1 . 4 3 2 2 . Misfires 13 | . . . . . . 3 . . . . . . . 1 . . . . . . . . 1 . . . 3 1 1 3 . Alerts 4 | . . . . . . . . . . . . . . . . . . . . . . . . . . . 3 1 . . . Misdirections 2 | . . . . . . . . . . . . . . . . . . . . . . . . . . . . . . 1 1 Weapon Failures 22 | . . . . . . 2 . . . . . . . . . . . . . . . . 1 . 1 . 3 . 5 10 . Overload Shots . | . . . . . . . . . . . . . . . . . . . . . . . . . . . . . . . . Overflow Damage 1859 | . . . . . . 20 28 19 11 1 16 16 . . 62 . 6 . . . 19 . 43 . . . 45 . 717 186 670 Projectiles 241 | . . . . . . . . 19 1 1 16 6 . . 62 . 6 . . . . . . . . . . . 22 . 108 Explosions 374 | . . . . . . 20 28 . 10 . . 10 . . . . . . . . 19 . 43 . . . . . 125 2 117 Melee 1244 | . . . . . . . . . . . . . . . . . . . . . . . . . . . 45 . 570 184 445 Knockbacks 59 | . . . 1 . . . 1 . . . . . . . . . 1 . . . . 2 . . . . . 1 6 47 . Impact 4 | . . . 1 . . . 1 . . . . . . . . . . . . . . 2 . . . . . . . . . Kinetic 51 | . . . . . . . . . . . . . . . . . 1 . . . . . . . . . . 1 4 45 . Secondary 4 | . . . . . . . . . . . . . . . . . . . . . . . . . . . . . 2 2 . Self-Inflicted Damage 272 | . . . . . . . . . 66 . . . . 65 . . . . . . 1 . 64 . . . . . 22 54 . Shots 9 | . . . . . . . . . 3 . . . . 2 . . . . . . 1 . 1 . . . . . 1 1 . Rammed 29 | . 6 2 4 . . 2 1 4 . . . . 1 . . . . . . . . 6 . . . . . . 3 . . Targets Rammed 31 | . 6 2 4 . . 2 2 5 . . . . 1 . . . . . . . . 6 . . . . . . 3 . . Kicked . | . . . . . . . . . . . . . . . . . . . . . . . . . . . . . . . . Crushed 2 | . . . . . . . 1 1 . . . . . . . . . . . . . . . . . . . . . . . Highest Temperature 822 | 36 303 50 520 10 211 160 145 238 45 . 102 366 295 586 370 274 644 344 227 . 446 354 313 . 522 252 822 388 486 279 68 Average Temperature 113 | 18 112 25 91 6 110 54 38 28 14 . 38 138 118 141 143 95 200 166 55 . 132 90 119 . 148 41 155 146 94 91 34 Received Heat Transfer 5957 | . 393 . 747 36 . 288 81 99 540 . 78 261 189 313 96 325 6 . . . 198 18 113 . 325 30 . 14 1212 595 . Effects 94 | . 7 . 2 . . . . . . . . 5 . 6 3 3 19 . . . 4 1 1 . 8 3 25 6 1 . . Shutdowns 24 | . . . . . . . . . . . . 1 . 2 . . 5 . . . 2 . . . 4 . 8 1 1 . . Energy Bleed 17 | . 2 . 1 . . . . . . . . 2 . 1 1 . 2 . . . 2 1 1 . 1 . 2 1 . . . Interference 26 | . 5 . . . . . . . . . . 2 . 2 1 3 . . . . . . . . . 3 7 3 . . . Matter Decay 3 | . . . 1 . . . . . . . . . . 1 1 . . . . . . . . . . . . . . . . Short Circuit 6 | . . . . . . . . . . . . . . . . . 2 . . . . . . . 1 . 2 1 . . . Damage (major) 18 | . . . . . . . . . . . . . . . . . 10 . . . . . . . 2 . 6 . . . . Siege Activations 43 | . . . . . . . . . . . . 1 2 . . . 4 . . . 1 . 4 . 8 2 13 2 6 . . Total Turns 777 | . . . . . . . . . . . . 11 33 . . . 34 . . . 66 . 78 . 169 21 134 8 223 . . Longest Duration 82 | . . . . . . . . . . . . 11 18 . . . 17 . . . 66 . 48 . 56 15 32 4 82 . . Martial Activations . | . . . . . . . . . . . . . . . . . . . . . . . . . . . . . . . . Shielding Activations . | . . . . . . . . . . . . . . . . . . . . . . . . . . . . . . . . Robots Disrupted . | . . . . . . . . . . . . . . . . . . . . . . . . . . . . . . . . Combat Hostiles . | . . . . . . . . . . . . . . . . . . . . . . . . . . . . . . . . Robots Corrupted 14 | . . . . . . 1 . . . . . 1 . . . . . . . . 5 . . . . . . . 7 . . Combat Hostiles 14 | . . . . . . 1 . . . . . 1 . . . . . . . . 5 . . . . . . . 7 . . Parts Fried 29 | . . . . . . 1 . . . . . . . . . . . . . . 19 . . . . . . . 9 . . Impact Corruptions 1 | . . . . . . . . . . . . . . . . . . . . . . 1 . . . . . . . . . Robots Melted 8 | . . . 4 . . . . . . . . 1 . . . . . . . . 3 . . . . . . . . . . Combat Hostiles 4 | . . . . . . . . . . . . 1 . . . . . . . . 3 . . . . . . . . . . Parts Melted 58 | . 2 . 10 . . . . 3 . 1 3 3 . . 2 . 2 2 3 . 8 1 1 . . . 8 . 8 1 . Heat Transferred 27205 | 150 1858 . 1850 . . . . 888 851 666 481 2083 259 1184 555 300 1576 1434 872 . 3457 481 1575 . 851 . 814 1371 2366 1073 210 Parts Sabotaged 3 | . . . . . . . . . . . . . . . . . . . . . . . . . . . . . 3 . . Parts Stolen 5 | . . . . . . . 3 . . . . . . . . . 2 . . . . . . . . . . . . . . Parts Stripped . | . . . . . . . . . . . . . . . . . . . . . . . . . . . . . . . . Power Chain Reactions 9 | . . . . . . . . . . . . . . . . . . . . . 3 . 6 . . . . . . . . Alert | -11 -10 -10 -9 -9 -9 -8 -8 -8 -7 -7 -7 -7 -7 -7 -6 -6 -6 -6 -5 -5 -5 -5 -5 -4 -4 -3 -3 -3 -2 -2 -2 ------- Run | Yrd Mat Min Mat Min Exi Min Mat Sto Fac Was Fac Gar Fac Gar Fac Low Low Dat Pro Fac Gar Fac Gar Fac Gar Res Qua Gar Res Tes Sec Maximum Alert Level 5 | . . . 2 . . . . . 1 . 1 5 3 4 4 . . . . . 4 3 4 3 4 3 2 3 5 5 5 Low Security (%) 32 | 100 100 100 40 100 . 100 100 100 64 100 94 3 . . . . . . . 100 29 . . . . . . 8 . . . Level 1 17 | . . . 48 . . . . . 35 . 5 8 . 3 . . . . . . 3 . . . . . 87 3 . . . Level 2 13 | . . . 10 . . . . . . . . 17 92 19 51 . . . . . 14 28 15 . 18 76 12 4 21 . . Level 3 14 | . . . . . . . . . . . . 19 7 48 14 . . . . . 12 71 6 100 34 23 . 83 25 15 . Level 4 16 | . . . . . . . . . . . . 36 . 28 33 . . . . . 39 . 77 . 47 . . . 31 28 . Level 5 4 | . . . . . . . . . . . . 14 . . . . . . . . . . . . . . . . 5 46 93 High Security 1 | . . . . . . . . . . . . . . . . . . . . . . . . . . . . . 16 10 6 Max Security . | . . . . . . . . . . . . . . . . . . . . . . . . . . . . . . . . Sterilizations 2 | . . . . . . . 1 1 . . . . . . . . . . . . . . . . . . . . . . . Peak Influence 3028 | 10 151 123 419 194 . 154 78 71 380 130 247 1833 961 1250 1309 . . . . 28 1457 880 1480 777 1300 731 459 1019 2035 3028 1731 Initial 1703 | . . 23 43 154 . . 37 . 11 130 . 96 961 352 655 . . . . 28 . 764 599 777 515 731 341 152 573 1100 1703 Average 609 | . 70 78 220 150 . 44 15 22 128 19 75 1050 568 888 883 . . . . 12 727 734 1138 759 1026 644 309 792 1205 1911 1678 Influence Increases 20345 | 15 545 140 1072 50 . 362 208 354 607 . 840 1907 108 958 1120 280 340 20 197 . 1687 458 951 . 865 174 680 927 2372 2860 248 Destroy 0b10 Robot/C 10480 | . 300 120 700 40 . 260 160 180 460 . 280 600 80 460 400 220 300 20 160 . 800 240 580 . 640 40 220 460 1460 1280 20 Destroy 0b10 Robot/NC 570 | 15 35 . 50 . . 5 5 20 20 . 15 20 . . 45 5 . . 5 . . 40 5 . 10 . . . 80 175 20 Destroy Leader 1598 | . 74 20 178 10 . 40 30 82 90 . 102 40 10 40 74 10 40 . 30 . 30 62 60 . 50 20 90 60 172 174 10 Allied During Kill 1520 | . . . . . . . . 5 . . 356 153 1 9 111 15 . . 2 . 55 69 42 . 35 18 140 158 74 277 . Successful Hack 236 | . 30 . 7 . . . 4 5 . . 61 48 . 14 7 . . . . . . . . . 7 . 13 . 40 . . Select Force Hacks 60 | . 60 . . . . . . . . . . . . . . . . . . . . . . . . . . . . . . Disable Machine 840 | . . . 15 . . 15 . 60 15 . 15 . . . 240 . . . . . . . 30 . 15 60 105 . . 210 60 Anti-Garrison Action 2050 | . . . . . . . . . . . . 750 . 250 150 . . . . . 650 . 150 . . . . 100 . . . Destroy Structure 1641 | . 1 . 2 . . 42 9 2 22 . 11 71 2 20 48 . . . . . 122 32 39 . 48 36 112 29 486 474 33 Partial Spotted 45 | . . . . . . . . . . . . . . . . . . . . . . . . . 15 . . . . . 30 Lose Combat Pursuer 1305 | . 45 . 120 . . . . . . . . 225 15 165 45 30 . . . . 30 15 45 . 45 . . 120 60 270 75 Influence Decreases 18678 | 15 484 88 787 344 104 264 306 328 261 372 702 212 1437 212 1097 1062 617 234 151 46 230 1059 327 743 302 867 1084 111 1458 1779 1595 Entered New Map 8613 | . . 38 70 244 104 . 61 . 15 242 . 42 872 152 595 472 95 214 . 18 . 693 257 703 222 569 266 51 446 847 1325 Time Decay 7121 | 15 464 50 627 90 . 264 238 294 196 130 404 . 190 . 342 550 482 20 151 28 . 326 . 40 . 278 748 . 542 482 170 Lost Part 1007 | . 20 . 90 10 . . 7 . 50 . 10 10 . . 20 10 40 . . . 30 10 10 . . . 30 . 330 230 100 Lost Ally 1334 | . . . . . . . . 34 . . 60 160 . 60 140 30 . . . . 200 30 60 . 80 20 40 60 140 220 . Purge Threat 603 | . . . . . . . . . . . 228 . 375 . . . . . . . . . . . . . . . . . . Squads Dispatched 101 | . 5 . 5 . . . . 2 8 . 4 . 4 . 11 . . . . . . 4 . . . 4 1 . 27 24 2 Investigation 11 | . 3 . 3 . . . . . 1 . . . . . 1 . . . . . . . . . . 1 1 . 1 . . Extermination 15 | . . . . . . . . . 1 . 3 . 1 . 1 . . . . . . 1 . . . 1 . . 3 3 1 Reinforcement 40 | . 2 . 2 . . . . 2 3 . 1 . 3 . 3 . . . . . . 2 . . . 2 . . 9 10 1 Assault 29 | . . . . . . . . . . . . . . . 5 . . . . . . 1 . . . . . . 13 10 . Garrison 4 | . . . . . . . . . 3 . . . . . 1 . . . . . . . . . . . . . . . . Intercept 2 | . . . . . . . . . . . . . . . . . . . . . . . . . . . . . 1 1 . Searches Triggered . | . . . . . . . . . . . . . . . . . . . . . . . . . . . . . . . . Construction Impeded 11 | . . . . . . . . . 2 . . . 1 . 1 . . . . . . 1 . . . . . . 2 4 . Haulers Reinforced 4 | . . . . . . . . . 1 . . . . . 1 . . . . . . . . . . . . . 2 . . Active Scanning Responses . | . . . . . . . . . . . . . . . . . . . . . . . . . . . . . . . . Cargo Convoy Interrupts 1 | . . . . . . . . . . . . . . . 1 . . . . . . . . . . . . . . . . Alert ID Control Effect 27 | . . . . . . . . . . . . . . . . . . . . . 1 1 . . . 13 11 . 1 . . Stealth | -11 -10 -10 -9 -9 -9 -8 -8 -8 -7 -7 -7 -7 -7 -7 -6 -6 -6 -6 -5 -5 -5 -5 -5 -4 -4 -3 -3 -3 -2 -2 -2 --------- Run | Yrd Mat Min Mat Min Exi Min Mat Sto Fac Was Fac Gar Fac Gar Fac Low Low Dat Pro Fac Gar Fac Gar Fac Gar Res Qua Gar Res Tes Sec Distress Signals 36 | . . . 4 . . . 3 1 2 . 1 1 . . 3 . . . . . . 1 . . 3 2 . . 5 9 1 Communications Jammed 11 | . . . . . . . . . . . . . . . 1 . . . . . . . . . . 7 . . 3 . . Distress Signals 10 | . . . . . . . . . . . . . . . 1 . . . . . . . . . . 7 . . 2 . . Times Spotted 786 | . 35 6 53 2 . 11 15 12 24 . 10 43 10 40 34 16 17 4 9 . 48 13 29 1 29 18 20 29 141 105 12 Peak Tracking Total 20 | . 5 3 4 2 . 4 5 3 7 . 4 8 4 6 8 3 4 2 4 . 14 5 13 1 6 4 4 20 17 14 9 Tactical Retreats 51 | . 1 . 5 . . . . . . . . 12 1 7 1 2 . . . . 2 1 2 . 1 . . 4 3 7 2 Traps | -11 -10 -10 -9 -9 -9 -8 -8 -8 -7 -7 -7 -7 -7 -7 -6 -6 -6 -6 -5 -5 -5 -5 -5 -4 -4 -3 -3 -3 -2 -2 -2 ------- Run | Yrd Mat Min Mat Min Exi Min Mat Sto Fac Was Fac Gar Fac Gar Fac Low Low Dat Pro Fac Gar Fac Gar Fac Gar Res Qua Gar Res Tes Sec Traps Triggered 32 | . 4 . 1 . . . . 2 1 . . 5 . 3 . . . . . . 1 . 2 . . . 1 5 5 1 1 Indirectly 1 | . . . . . . . . . . . . . . . . . . . . . . . 1 . . . . . . . . Trap Hack Attempts . | . . . . . . . . . . . . . . . . . . . . . . . . . . . . . . . . Triggered . | . . . . . . . . . . . . . . . . . . . . . . . . . . . . . . . . Disarmed . | . . . . . . . . . . . . . . . . . . . . . . . . . . . . . . . . Reprogrammed . | . . . . . . . . . . . . . . . . . . . . . . . . . . . . . . . . Reused . | . . . . . . . . . . . . . . . . . . . . . . . . . . . . . . . . Traps Extracted . | . . . . . . . . . . . . . . . . . . . . . . . . . . . . . . . . Installed . | . . . . . . . . . . . . . . . . . . . . . . . . . . . . . . . . Triggered . | . . . . . . . . . . . . . . . . . . . . . . . . . . . . . . . . Machines | -11 -10 -10 -9 -9 -9 -8 -8 -8 -7 -7 -7 -7 -7 -7 -6 -6 -6 -6 -5 -5 -5 -5 -5 -4 -4 -3 -3 -3 -2 -2 -2 ---------- Run | Yrd Mat Min Mat Min Exi Min Mat Sto Fac Was Fac Gar Fac Gar Fac Low Low Dat Pro Fac Gar Fac Gar Fac Gar Res Qua Gar Res Tes Sec Machines Disabled 81 | . . . 1 . . 1 1 4 1 . 1 4 . 3 17 . . . . . 7 . 9 . 1 4 7 2 . 14 4 Max in Single Turn 2 | . . . 1 . . 1 1 1 1 . 1 1 . 1 . . . . . . 2 . 1 . . 1 1 1 . 2 1 Garrison Access 4 | . . . . . . . 1 . . . . . . . 2 . . . . . . . . . . . . . . . 1 Garrison Relay 15 | . . . . . . . . . . . . 4 . 2 . . . . . . 4 . 3 . . . . 2 . . . Phase Generator 1 | . . . . . . . . . . . . . . . . . . . . . 1 . . . . . . . . . . Machines Repaired . | . . . . . . . . . . . . . . . . . . . . . . . . . . . . . . . . Machines Dismantled . | . . . . . . . . . . . . . . . . . . . . . . . . . . . . . . . . Machines Sabotaged . | . . . . . . . . . . . . . . . . . . . . . . . . . . . . . . . . Overloaded Fab Kills . | . . . . . . . . . . . . . . . . . . . . . . . . . . . . . . . . Hacking | -11 -10 -10 -9 -9 -9 -8 -8 -8 -7 -7 -7 -7 -7 -7 -6 -6 -6 -6 -5 -5 -5 -5 -5 -4 -4 -3 -3 -3 -2 -2 -2 --------- Run | Yrd Mat Min Mat Min Exi Min Mat Sto Fac Was Fac Gar Fac Gar Fac Low Low Dat Pro Fac Gar Fac Gar Fac Gar Res Qua Gar Res Tes Sec Machines Accessed 71 | . 10 . 5 . 2 . 1 2 1 . 10 4 1 2 3 1 1 3 . 1 2 4 . 2 1 1 4 1 7 1 1 Terminals 39 | . 7 . 3 . . . . 1 . . 7 4 . 2 3 . . . . . 2 . . . 1 . 1 1 6 1 . Fabricators 1 | . . . . . . . . . . . . . . . . . . . . . . 1 . . . . . . . . . Repair Stations 4 | . 1 . . . . . 1 1 . . . . . . . . . . . . . . . . . . . . 1 . . Recycling Units 2 | . 2 . . . . . . . . . . . . . . . . . . . . . . . . . . . . . . Scanalyzers 9 | . . . 2 . . . . . . . 1 . . . . . . . . . . 2 . 1 . 1 2 . . . . Garrison Access 9 | . . . . . . . . . 1 . 2 . 1 . . . . . . 1 . 1 . 1 . . 1 . . . 1 Total Hacks 173 | . 25 . 15 . 2 . 6 5 2 . 27 11 1 4 4 1 1 24 . 1 3 8 . 3 2 2 9 2 11 3 1 Successful 100 | . 14 . 6 . 2 . 6 4 . . 14 5 1 1 1 1 1 24 . 1 1 4 . 1 1 . 5 . 5 1 1 Failed 71 | . 11 . 8 . . . . 1 2 . 13 6 . 3 3 . . . . . 2 3 . 2 1 2 4 2 6 2 . Catastrophic 15 | . 2 . . . . . . . 2 . 3 2 . 1 2 . . . . . 1 1 . . . 1 . . . . . Database Lockouts 2 | . . . 1 . . . . . . . . . . . . . . . . . . 1 . . . . . . . . . Manual 58 | . 25 . 6 . 1 . . 2 . . 10 2 . . 2 . . . . . . 1 . . . . . . 9 . . Terminals 89 | . 19 . 7 . . . . 3 . . 18 11 . 4 4 . . . . . 3 . . . 2 . 3 2 10 3 . Fabricators 3 | . . . . . . . . . . . . . . . . . . . . . . 3 . . . . . . . . . Repair Stations 13 | . 4 . . . . . 6 2 . . . . . . . . . . . . . . . . . . . . 1 . . Recycling Units 2 | . 2 . . . . . . . . . . . . . . . . . . . . . . . . . . . . . . Scanalyzers 24 | . . . 8 . . . . . . . 3 . . . . . . . . . . 4 . 2 . 2 5 . . . . Garrison Access 14 | . . . . . . . . . 2 . 6 . 1 . . . . . . 1 . 1 . 1 . . 1 . . . 1 Terminal Hacks 47 | . 2 . 1 . 2 . . 1 . . 4 4 . 1 1 1 1 24 . . 1 . . . 1 . 1 . 1 1 . Record 3 | . . . . . 1 . . . . . . . . . . . . 2 . . . . . . . . . . . . . Part Schematic 14 | . 1 . . . . . . . . . . . . . . . . 13 . . . . . . . . . . . . . Robot Schematic 7 | . 1 . . . . . . . . . . . . . . . . 6 . . . . . . . . . . . . . Prototype ID Bank 3 | . . . . . . . . . . . . . . . . . . 3 . . . . . . . . . . . . . Open Door 6 | . . . . . . . . . . . . 1 . . . 1 1 . . . . . . . 1 . 1 . . 1 . Branch Access Points 3 | . . . 1 . . . . . . . . . . . 1 . . . . . . . . . . . . . 1 . . Emergency Access Points 1 | . . . . . . . . . . . . 1 . . . . . . . . . . . . . . . . . . . Unreport Threat 3 | . . . . . . . . . . . 3 . . . . . . . . . . . . . . . . . . . . Hauler Manifests 1 | . . . . . . . . 1 . . . . . . . . . . . . . . . . . . . . . . . Zone Layout 1 | . . . . . . . . . . . 1 . . . . . . . . . . . . . . . . . . . . Garrison Registry 2 | . . . . . . . . . . . . . . 1 . . . . . . 1 . . . . . . . . . . Patrol Navigation 1 | . . . . . . . . . . . . 1 . . . . . . . . . . . . . . . . . . . Security Stations 1 | . . . . . . . . . . . . 1 . . . . . . . . . . . . . . . . . . . Proto ID Catalog 1 | . . . . . 1 . . . . . . . . . . . . . . . . . . . . . . . . . . Fabricator Hacks 2 | . . . . . . . . . . . . . . . . . . . . . . 2 . . . . . . . . . Load Schematic 1 | . . . . . . . . . . . . . . . . . . . . . . 1 . . . . . . . . . Build 1 | . . . . . . . . . . . . . . . . . . . . . . 1 . . . . . . . . . Repair Station Hacks 12 | . 4 . . . . . 6 2 . . . . . . . . . . . . . . . . . . . . . . . Scan Component 6 | . 2 . . . . . 3 1 . . . . . . . . . . . . . . . . . . . . . . . Repair 6 | . 2 . . . . . 3 1 . . . . . . . . . . . . . . . . . . . . . . . Recycling Unit Hacks . | . . . . . . . . . . . . . . . . . . . . . . . . . . . . . . . . Scanalyzer 10 | . . . 4 . . . . . . . 2 . . . . . . . . . . 1 . . . . 3 . . . . Retrieve Study 10 | . . . 4 . . . . . . . 2 . . . . . . . . . . 1 . . . . 3 . . . . Garrison Access Hacks 7 | . . . . . . . . . . . 1 . 1 . . . . . . 1 . 1 . 1 . . 1 . . . 1 Unlock Access 6 | . . . . . . . . . . . 1 . 1 . . . . . . 1 . 1 . 1 . . 1 . . . . Seal Access 1 | . . . . . . . . . . . . . . . . . . . . . . . . . . . . . . . 1 Unauthorized Hacks 22 | . 8 . 1 . . . . 1 . . 7 1 . . . . . . . . . . . . . . . . 4 . . Terminals 20 | . 6 . 1 . . . . 1 . . 7 1 . . . . . . . . . . . . . . . . 4 . . Botnet 19 | . 6 . 1 . . . . 1 . . 6 1 . . . . . . . . . . . . . . . . 4 . . Operators 1 | . . . . . . . . . . . 1 . . . . . . . . . . . . . . . . . . . . Fabricators . | . . . . . . . . . . . . . . . . . . . . . . . . . . . . . . . . Repair Stations . | . . . . . . . . . . . . . . . . . . . . . . . . . . . . . . . . Recycling Units 2 | . 2 . . . . . . . . . . . . . . . . . . . . . . . . . . . . . . Tunnel 2 | . 2 . . . . . . . . . . . . . . . . . . . . . . . . . . . . . . Scanalyzers . | . . . . . . . . . . . . . . . . . . . . . . . . . . . . . . . . Garrison Access . | . . . . . . . . . . . . . . . . . . . . . . . . . . . . . . . . Data Cores Recovered . | . . . . . . . . . . . . . . . . . . . . . . . . . . . . . . . . Used . | . . . . . . . . . . . . . . . . . . . . . . . . . . . . . . . . Hacking Detections 45 | . 5 . 3 . . . 1 . 1 . 9 4 1 2 1 . . . . . 2 3 . 1 1 1 2 1 6 1 . Full Trace Events 4 | . . . . . . . . . 1 . . 1 . 1 1 . . . . . . . . . . . . . . . . Feedback Events 1 | . . . . . . . . . . . . . . 1 . . . . . . . . . . . . . . . . . Corruption 1 | . . . . . . . . . . . . . . 1 . . . . . . . . . . . . . . . . . Feedback Blocked . | . . . . . . . . . . . . . . . . . . . . . . . . . . . . . . . . Robot Schematics Acquired 8 | . 1 . . . . . . . . . . . . . . . . 6 . . . . . . . . 1 . . . . Robots Built . | . . . . . . . . . . . . . . . . . . . . . . . . . . . . . . . . Authchips . | . . . . . . . . . . . . . . . . . . . . . . . . . . . . . . . . Time . | . . . . . . . . . . . . . . . . . . . . . . . . . . . . . . . . Total Robot Build Rating . | . . . . . . . . . . . . . . . . . . . . . . . . . . . . . . . . Part Schematics Acquired 22 | . 1 . . . . . . . . . . . . . . . . 13 . . . . . . . . 6 . . 2 . Parts Built 1 | . . . . . . . . . . . . . . . . . . . . . . 1 . . . . . . . . . Authchips 1 | . . . . . . . . . . . . . . . . . . . . . . 1 . . . . . . . . . Time 84 | . . . . . . . . . . . . . . . . . . . . . . 84 . . . . . . . . . Total Part Build Rating 6 | . . . . . . . . . . . . . . . . . . . . . . 6 . . . . . . . . . Part Studies Acquired 10 | . . . 4 . . . . . . . 2 . . . . . . . . . . 1 . . . . 3 . . . . Parts Repaired 5 | . 2 . . . . . 2 1 . . . . . . . . . . . . . . . . . . . . . . . Time 243 | . 52 . . . . . 140 51 . . . . . . . . . . . . . . . . . . . . . . . Parts Recycled . | . . . . . . . . . . . . . . . . . . . . . . . . . . . . . . . . Recycled Matter . | . . . . . . . . . . . . . . . . . . . . . . . . . . . . . . . . Retrieved Matter . | . . . . . . . . . . . . . . . . . . . . . . . . . . . . . . . . Retrieved Components . | . . . . . . . . . . . . . . . . . . . . . . . . . . . . . . . . Parts Scanalyzed . | . . . . . . . . . . . . . . . . . . . . . . . . . . . . . . . . Part Schematics Acquired . | . . . . . . . . . . . . . . . . . . . . . . . . . . . . . . . . Parts Damaged . | . . . . . . . . . . . . . . . . . . . . . . . . . . . . . . . . Bothacking | -11 -10 -10 -9 -9 -9 -8 -8 -8 -7 -7 -7 -7 -7 -7 -6 -6 -6 -6 -5 -5 -5 -5 -5 -4 -4 -3 -3 -3 -2 -2 -2 ------------ Run | Yrd Mat Min Mat Min Exi Min Mat Sto Fac Was Fac Gar Fac Gar Fac Low Low Dat Pro Fac Gar Fac Gar Fac Gar Res Qua Gar Res Tes Sec Used RIF Installer 6 | . . . . . . . . . . . . 1 . 1 . . . . . . 1 . 1 . 1 . . 1 . . . Hotswap 1 | . . . . . . . . . . . . . . . . . . . . . . . . . 1 . . . . . . Command Fork 1 | . . . . . . . . . . . . . . 1 . . . . . . . . . . . . . . . . . Robot Detection 1 | . . . . . . . . . . . . . . . . . . . . . . . . . . . . 1 . . . Patrol Navigation 1 | . . . . . . . . . . . . . . . . . . . . . . . 1 . . . . . . . . Alert ID Control 1 | . . . . . . . . . . . . . . . . . . . . . 1 . . . . . . . . . . Structural Interface 1 | . . . . . . . . . . . . 1 . . . . . . . . . . . . . . . . . . . Robots Hacked 49 | . . . . . . . . . . . . . 5 6 8 . . . . . 15 3 1 . . 6 . . 5 . . Non-combat 6 | . . . . . . . . . . . . . 1 . 1 . . . . . . 1 . . . 1 . . 2 . . Combat 43 | . . . . . . . . . . . . . 4 6 7 . . . . . 15 2 1 . . 5 . . 3 . . Robot Hacks Applied 53 | . . . . . . . . . . . . . 7 6 10 . . . . . 15 3 1 . . 6 . . 5 . . parse_system 2 | . . . . . . . . . . . . . . . . . . . . . 1 . 1 . . . . . . . . purge_threat 3 | . . . . . . . . . . . . . 3 . . . . . . . . . . . . . . . . . . find_garrison 1 | . . . . . . . . . . . . . 1 . . . . . . . . . . . . . . . . . . amplify_resonance 4 | . . . . . . . . . . . . . 1 2 1 . . . . . . . . . . . . . . . . overwrite_iff 20 | . . . . . . . . . . . . . 1 1 5 . . . . . 11 . . . . . . . 2 . . formatsys_low 5 | . . . . . . . . . . . . . . . 1 . . . . . . 1 . . . 1 . . 2 . . formatsys_high 18 | . . . . . . . . . . . . . 1 3 3 . . . . . 3 2 . . . 5 . . 1 . . Relay Couplers Released 65 | . . . . . . . 3 . . . . 17 . 7 2 . . . . . 15 . 12 . . . . 9 . . . Machine Destruction 65 | . . . . . . . 3 . . . . 17 . 7 2 . . . . . 15 . 12 . . . . 9 . . . Attached 17 | . . . . . . . . . . . . . 2 . 1 . . . . . 7 2 . . . 3 . . 2 . . Fabnet Peak Effective % . | . . . . . . . . . . . . . . . . . . . . . . . . . . . . . . . . Robots Rewired 7 | . . . . . . . . . . . . 2 . . . . . . . . . . 2 . 1 . . 2 . . . Allies Hacked 5 | . . . . . . . . . . . 2 . . . . . . . . . . . . . . . . . 1 2 . Hacks Repelled . | . . . . . . . . . . . . . . . . . . . . . . . . . . . . . . . . Allies | -11 -10 -10 -9 -9 -9 -8 -8 -8 -7 -7 -7 -7 -7 -7 -6 -6 -6 -6 -5 -5 -5 -5 -5 -4 -4 -3 -3 -3 -2 -2 -2 -------- Run | Yrd Mat Min Mat Min Exi Min Mat Sto Fac Was Fac Gar Fac Gar Fac Low Low Dat Pro Fac Gar Fac Gar Fac Gar Res Qua Gar Res Tes Sec Total Allies 113 | . . . . . . . . 3 . 20 . 2 2 4 14 . . . 1 . 18 3 3 . 3 7 2 4 10 17 . Largest Group 20 | . . . . . . . . 3 . 20 19 12 2 2 6 4 . . 1 1 3 4 2 1 3 6 6 2 4 6 . Highest-Rated Group 492 | . . . . . . . . 24 . 492 457 355 32 32 164 89 . . 79 79 101 198 148 85 182 327 327 198 232 405 . Highest-Rated Ally 219 | . . . . . . . . 8 . 35 31 39 16 16 47 29 . . 79 79 99 99 148 85 116 68 110 110 183 219 . Total Orders 22 | . . . . . . . . . . . . . . . 1 1 . . . . 2 1 4 . . 5 5 . 3 . . STAY 7 | . . . . . . . . . . . . . . . . . . . . . 1 . 1 . . 2 2 . 1 . . FOLLOW 6 | . . . . . . . . . . . . . . . . . . . . . 1 . 1 . . 2 2 . . . . AID 7 | . . . . . . . . . . . . . . . 1 1 . . . . . 1 . . . 1 1 . 2 . . RETURN 2 | . . . . . . . . . . . . . . . . . . . . . . . 2 . . . . . . . . Ally Attacks 825 | . . . . . . . . 20 . . 101 74 6 13 87 9 . . 1 . 67 39 29 . 29 51 65 53 93 88 . Total Damage 26902 | . . . . . . . . 125 . . 1619 1450 78 112 3170 86 . . 132 . 2248 1219 1123 . 1114 2057 3101 2408 3114 3746 . Kills 160 | . . . . . . . . 1 . . 11 9 1 2 24 1 . . 1 . 12 12 4 . 10 13 11 13 12 23 . Allies Corrupted 5 | . . . . . . . . . . . 1 1 . . . . . . . . . . 1 . . . 1 . . 1 . Allies Melted 2 | . . . . . . . . . . . . 1 . . . . . . . . . . . . 1 . . . . . . Field Lobotomies 5 | . . . . . . . . . . . . . . . . . . . . . 1 . . . . . 2 . 2 . . X0-1V1 Amusement Gains 526 | . 11 . 10 . . . 100 5 15 . . . . . 30 . . 94 2 . 55 . 20 15 . . 45 40 7 44 33 Good Acts 181 | . 1 . 13 . . 4 3 5 . 3 3 7 . 10 5 3 5 . 8 . 17 5 10 1 11 3 11 5 18 22 8 Bad Acts 80 | . . 1 10 1 . 4 2 2 1 . 3 8 1 3 . 8 2 . . . 5 . . . 3 2 6 2 15 1 . Intel | -11 -10 -10 -9 -9 -9 -8 -8 -8 -7 -7 -7 -7 -7 -7 -6 -6 -6 -6 -5 -5 -5 -5 -5 -4 -4 -3 -3 -3 -2 -2 -2 ------- Run | Yrd Mat Min Mat Min Exi Min Mat Sto Fac Was Fac Gar Fac Gar Fac Low Low Dat Pro Fac Gar Fac Gar Fac Gar Res Qua Gar Res Tes Sec Active Infowar (turns) 4275 | 12 321 . . . . . . . . 1 1154 18 . . 756 1567 1 . . . . 158 . . . 139 . . 148 . . Terrain 809 | . . . . . . . . . . 1 790 18 . . . . . . . . . . . . . . . . . . . Structural 84 | . . . . . . . . . . . 84 . . . . . . . . . . . . . . . . . . . . Seismic 333 | 12 321 . . . . . . . . . . . . . . . . . . . . . . . . . . . . . . T.N.C. 2324 | . . . . . . . . . . . . . . . 756 1567 1 . . . . . . . . . . . . . . Jamming 778 | . . . . . . . . . . . 280 . . . 53 . . . . . . 158 . . . 139 . . 148 . . Robot Analysis Total 154 | . . . . . . . . . . . . . . . . . . 154 . . . . . . . . . . . . . Derelict Logs Recovered 6 | . . . . . . . . . . . . . . . . 2 1 . 3 . . . . . . . . . . . . Drone Launches 2 | . . . . . . . . . . . . . . . . . . . . . . . 2 . . . . . . . . Drone Recoveries 2 | . . . . . . . . . . . . . . . . . . . . . . . 2 . . . . . . . . Exploration | -11 -10 -10 -9 -9 -9 -8 -8 -8 -7 -7 -7 -7 -7 -7 -6 -6 -6 -6 -5 -5 -5 -5 -5 -4 -4 -3 -3 -3 -2 -2 -2 ------------- Run | Yrd Mat Min Mat Min Exi Min Mat Sto Fac Was Fac Gar Fac Gar Fac Low Low Dat Pro Fac Gar Fac Gar Fac Gar Res Qua Gar Res Tes Sec Turns Passed 36526 | 98 1866 113 2186 180 489 1164 988 945 483 945 1415 2443 382 1686 772 1582 1256 774 2291 85 2312 729 1018 88 1177 600 3957 893 1843 1401 365 Spaces Moved 14831 | 55 938 42 911 72 215 388 353 329 142 334 534 874 121 615 287 906 658 254 671 17 994 327 432 35 516 273 1589 315 611 522 501 Core 137 | 16 . . . . . . . . . . . . . . . . . . . . . . . . . . . . . 103 18 Treads 13209 | 39 938 42 911 72 215 388 353 329 142 334 534 874 121 615 287 906 658 103 . . 916 327 432 35 516 273 1589 315 611 334 . Legs 917 | . . . . . . . . . . . . . . . . . . 151 671 17 78 . . . . . . . . . . Wheels . | . . . . . . . . . . . . . . . . . . . . . . . . . . . . . . . . Hover . | . . . . . . . . . . . . . . . . . . . . . . . . . . . . . . . . Flight 518 | . . . . . . . . . . . . . . . . . . . . . . . . . . . . . . 85 433 Fastest Speed 28 | 50 160 160 160 226 226 226 213 216 222 222 229 243 243 225 200 160 160 222 265 480 162 162 161 165 165 165 165 155 158 31 28 Average Speed 199 | 128 160 194 170 226 226 271 214 216 222 242 240 243 243 227 207 160 166 250 332 480 185 162 176 165 165 165 222 211 163 166 38 Slowest Speed 550 | 160 240 240 226 226 226 280 216 216 229 243 246 243 243 243 240 210 222 345 550 480 550 162 247 165 165 167 249 238 255 480 200 Overloaded Moves . | . . . . . . . . . . . . . . . . . . . . . . . . . . . . . . . . Propulsion Burnouts . | . . . . . . . . . . . . . . . . . . . . . . . . . . . . . . . . Robots Hopped 2 | . . . . . . . . . . . . . . . . . . . . . . . . . . . . . . . 2 Potential Cave-ins 6 | . . . . . . . . . . . . . . . . . . . . . . . . . . . 4 . . . 2 Cave-ins Triggered . | . . . . . . . . . . . . . . . . . . . . . . . . . . . . . . . . Teleports 1 | . . . . . . . . . . . . . . . . . . . . . . . . . . . . . 1 . . Microwarps 4 | . . . . . . . . . . . . . . . . . . . . . . . . . . . . . . . 4 Exploration Rate (%) 49 | 3 94 12 79 12 55 73 51 54 4 95 23 85 4 68 11 95 87 80 77 1 84 11 55 3 69 11 97 49 25 66 42 Regions Visited 31 Branch Regions 12 Pre-discovered Areas 37 | . 2 . . . 1 . . . . . . . . . . . . 33 1 . . . . . . . . . . . . Known Exits Taken 15 | . . . 1 . . 1 1 1 . . 1 . 1 . 1 1 1 . . 1 . 1 . 1 . . 1 . 1 1 . Unknown Exits Taken 8 | 1 1 1 . 1 1 . . . . . . . . . . . . 1 1 . . . . . . 1 . . . . . Scrap Searched 16 | . . 1 . . . . . . . . . . . . . 6 7 . 2 . . . . . . . . . . . . Spaces Dug 110 | . . . . . . . . . . . . 1 . 1 1 2 . . . . . 13 . . . . 16 9 37 14 16 Terrain Destroyed 721 | . . . . . . 52 9 . 25 . 22 12 1 23 3 2 3 . 5 . 95 16 20 . 8 20 59 14 168 148 16 Melee 70 | . . . . . . . . . . . . . . . . . . . . . . . . . . . 3 5 34 12 16 Projectile 104 | . . . . . . . . . . . 3 5 1 9 3 2 3 . 5 . 1 16 . . 4 3 14 9 23 3 . AOE 492 | . . . . . . 52 9 . 25 . 19 6 . 14 . . . . . . 94 . 20 . . 17 41 . 111 84 . Terrain Rammed . | . . . . . . . . . . . . . . . . . . . . . . . . . . . . . . . . Walls Destroyed . | . . . . . . . . . . . . . . . . . . . . . . . . . . . . . . . . Machines Disabled . | . . . . . . . . . . . . . . . . . . . . . . . . . . . . . . . . Actions | -11 -10 -10 -9 -9 -9 -8 -8 -8 -7 -7 -7 -7 -7 -7 -6 -6 -6 -6 -5 -5 -5 -5 -5 -4 -4 -3 -3 -3 -2 -2 -2 --------- Run | Yrd Mat Min Mat Min Exi Min Mat Sto Fac Was Fac Gar Fac Gar Fac Low Low Dat Pro Fac Gar Fac Gar Fac Gar Res Qua Gar Res Tes Sec Total 19334 | 77 1168 56 1307 80 219 442 544 510 240 457 630 1043 180 774 419 984 764 325 699 20 1349 463 592 65 743 391 1873 441 1109 776 594 Wait 1638 | . 106 . 144 . . 4 127 102 33 67 30 39 28 18 48 17 47 21 2 . 159 67 42 28 146 52 72 29 125 10 75 Move 14754 | 54 937 41 910 71 214 387 352 328 142 333 533 873 121 614 286 905 657 253 670 17 993 326 431 35 515 272 1588 314 610 521 451 Hop 2 | . . . . . . . . . . . . . . . . . . . . . . . . . . . . . . . 2 Pick Up 414 | 13 19 2 46 3 2 5 17 13 10 13 10 6 2 15 12 9 12 6 2 1 42 4 13 . 10 10 39 5 46 19 8 Fast Attach 90 | . 7 . 11 . . 1 1 3 . 1 6 4 . 6 2 4 2 1 1 . 3 . 7 . 2 2 5 9 . 7 5 Attach 219 | 7 3 . 14 1 . 3 8 1 7 4 . 3 . 1 6 3 4 3 3 2 19 3 7 2 3 3 15 . 45 36 13 Detach 49 | . 1 . . . 2 . . . . . . . . . . 1 . . . . 3 . 4 . . . 3 1 10 17 7 Swap 371 | . 9 1 14 . 1 8 8 12 6 6 14 6 9 24 20 6 11 3 4 . 22 13 21 . 12 23 45 16 46 11 . Drop 337 | . 14 1 41 . . 2 10 17 5 15 19 10 1 19 12 8 8 3 2 . 28 2 18 . 7 10 38 13 15 12 7 Fire 1235 | 3 66 9 123 5 . 30 19 29 37 18 18 81 18 73 33 31 23 18 15 . 80 42 49 . 48 19 62 30 158 97 1 Melee 167 | . . . . . . . . . . . . . . . . . . 17 . . . . . . . . 6 22 51 46 25 Ram . | . . . . . . . . . . . . . . . . . . . . . . . . . . . . . . . . Kick . | . . . . . . . . . . . . . . . . . . . . . . . . . . . . . . . . Crush 31 | . 6 2 4 . . 2 2 5 . . . . 1 . . . . . . . . 6 . . . . . . 3 . . Escape Stasis 12 | . . . . . . . . . . . . 6 . 4 . . . . . . . . . . . . . 2 . . . Rewire 15 | . . . . . . . . . . . . 15 . . . . . . . . . . . . . . . . . . . Trap . | . . . . . . . . . . . . . . . . . . . . . . . . . . . . . . . . Miscellaneous . | . . . . . . . . . . . . . . . . . . . . . . . . . . . . . . . . Route ------- -11/Scrapyard -10/Materials (discovered 5 exits: *Mat x3 / [*Min] / [*Sub]) -10/Mines -9/Materials (discovered 5 exits: *Mat x3 / *Min x2) -9/Mines -9/Exiles -8/Mines -8/Materials (discovered 2 exits: *Fac / *Sto) -8/Storage -7/Factory -7/Waste -7/Factory (discovered 2 exits: *Fac / Gar) -7/Garrison (discovered 3 exits: *Fac x3) -7/Factory -7/Garrison (discovered 3 exits: *Fac x3) -6/Factory (discovered 2 exits: *Low x2) -6/Lower Caves -6/Lower Caves (discovered 2 exits: *Fac / *Dat) -6/Data Miner -5/Proximity Caves -5/Factory (discovered 2 exits: Upp / Gar) -5/Garrison (discovered 3 exits: *Fac x3) -5/Factory (discovered 2 exits: *Upp / Gar) -5/Garrison (discovered 2 exits: *Fac x2) -4/Factory -4/Garrison (discovered 4 exits: *Res x3 / Fac) -3/Research (discovered 3 exits: Res / Arm / *Qua) -3/Quarantine (discovered 2 exits: *Res / Gar) -3/Garrison -2/Research (discovered 3 exits: [*Acc] / *Tes x2) -2/Testing (discovered 2 exits: *Sec / [*Frg]) -2/Section 7 (discovered 1 exit: [*Acc]) History --------- Turn | Location | Event 6 | -11/Scrapyard | Discovered new exit (range 15) 99 | -11/Scrapyard | Entered Materials 313 | -10/Materials | Build established: Mutant 390 | -10/Materials | Discovered new exit (range 7) 460 | -10/Materials | Core integrity fell below 50% 589 | -10/Materials | Discovered new exit (range 16) 771 | -10/Materials | Build established: Scavenger-Mutant 879 | -10/Materials | Discovered new exit (range 5) 1044 | -10/Materials | Discovered new exit (range 10) 1108 | -10/Materials | Build established: Mutant 1254 | -10/Materials | Repaired Lgt. Treads 1281 | -10/Materials | Repaired Lgt. Treads 1592 | -10/Materials | Core integrity fell below 20% 1732 | -10/Materials | Discovered new exit (range 9) 1743 | -10/Materials | Prayed at D.C.S.S. Altar Unit 1896 | -10/Materials | Core integrity permanently improved by X0-1V1 (+200) 1965 | -10/Materials | Entered Mines 2043 | -10/Mines | Discovered new exit (range 8) 2078 | -10/Mines | Entered Materials 2078 | -9/Materials | Evolved 2 slots: Propulsion x1, Utility x1 2169 | -9/Materials | Identified exit to Mines 2169 | -9/Materials | X0-1V1 revealed exit location to -9/Mines 2185 | -9/Materials | X0-1V1 sent hostile S-10 Pest (x3) 2300 | -9/Materials | Inventory capacity permanently improved by X0-1V1 (+2; -200 max core) 2544 | -9/Materials | X0-1V1 sent you to a vault 2588 | -9/Materials | X0-1V1 revealed exit location to -9/Mines 2674 | -9/Materials | X0-1V1 foreshadows a heat wave 2702 | -9/Materials | Identified exit to Materials 2702 | -9/Materials | X0-1V1 revealed exit location to -8/Materials 2787 | -9/Materials | Weapon slot count temporarily expanded by X0-1V1 (+3) 2789 | -9/Materials | Ambient heat levels rising (+10) 3018 | -9/Materials | Lost 3 parts (1p1n1w) 3044 | -9/Materials | Ambient heat levels rising (+10) 3130 | -9/Materials | Central database locked down 3198 | -9/Materials | Ambient heat levels falling (-10) 3457 | -9/Materials | Ambient heat levels falling (-10) 3583 | -9/Materials | Discovered exit to Materials (range 6) 4001 | -9/Materials | Discovered exit to Materials (range 6) 4105 | -9/Materials | X0-1V1 announced a LAN party 4189 | -9/Materials | X0-1V1 vaporized surrounding terrain (radius 20) 4247 | -9/Materials | Build established: Hauler-Mutant 4264 | -9/Materials | Entered Mines 4314 | -9/Mines | Received a Rocket Launcher from a helpful Derelict 4435 | -9/Mines | Deemed a non-threat by the Exiles lab entrance 4435 | -9/Mines | Discovered new exit (range 5) 4444 | -9/Mines | Entered Exiles 4512 | -9/Exiles | Met 8R-AWN 4540 | -9/Exiles | Met EX-HEX 4606 | -9/Exiles | Met EX-BIN 4635 | -9/Exiles | Aligned with FarCom system 4638 | -9/Exiles | Given EX-Vault access code 4690 | -9/Exiles | Opened EX-Vault 4703 | -9/Exiles | Found Modified TNC 4712 | -9/Exiles | Found Field Lobotomy Kit 4756 | -9/Exiles | Warned to stay clear of 0b10 Research branches 4826 | -9/Exiles | Met EX-DEC 4835 | -9/Exiles | Learned location of Zion (-7) 4915 | -9/Exiles | Discovered new exit (range 10) 4933 | -9/Exiles | Stole two prototypes: Modified TNC, Field Lobotomy Kit 4933 | -9/Exiles | Entered Mines 5139 | -8/Mines | X0-1V1 mutated your Propulsion slot to Utility slot 5338 | -8/Mines | Ranged accuracy permanently improved by X0-1V1 (+8%; -80 max core) 5901 | -8/Mines | X0-1V1 mutated your Utility slot to Power slot 6048 | -8/Mines | Discovered exit to Materials (range 11) 6048 | -8/Mines | X0-1V1 sent you into danger 6097 | -8/Mines | System corruption reached 10% 6097 | -8/Mines | Entered Materials 6097 | -8/Materials | Evolved 2 slots: Propulsion x1, Weapon x1 6196 | -8/Materials | X0-1V1 released a cloud of subatomizers 6280 | -8/Materials | Repaired Arm. Treads 6381 | -8/Materials | Repaired Imp. Assault Rifle 6536 | -8/Materials | Lgt. Nuclear Core reconfigured into Item Mimic 6539 | -8/Materials | Sterilization system engaged 6539 | -8/Materials | Non-combat units ordered to evacuate 6639 | -8/Materials | Combat units ordered to evacuate 6753 | -8/Materials | Build established: Hauler-Skirmisher 6839 | -8/Materials | Ambient heat levels rising (+10) 6950 | -8/Materials | Discovered new exit (range 15) 6989 | -8/Materials | Ambient heat levels rising (+10) 7065 | -8/Materials | Discovered new exit (range 10) 7085 | -8/Materials | Identified exit to Storage 7085 | -8/Materials | Entered Storage 7087 | -8/Storage | FarCom data flow suspended 7377 | -8/Storage | Build established: Hauler-Tank 7442 | -8/Storage | Identified exit to Factory 7442 | -8/Storage | X0-1V1 revealed exit location to -7/Factory 7535 | -8/Storage | X0-1V1 mutated your Weapon slot to Utility slot 7765 | -8/Storage | X0-1V1 made a cryptic comment about sterilization and BL-4Z3 7784 | -8/Storage | X0-1V1 sent allied G-34 Mercenary (x3) 7859 | -8/Storage | Build established: Hauler-Mutant 7890 | -8/Storage | Sterilization system engaged 7890 | -8/Storage | Non-combat units ordered to evacuate 7900 | -8/Storage | Repaired Imp. Assault Rifle 7990 | -8/Storage | Combat units ordered to evacuate 8030 | -8/Storage | Entered Factory 8030 | -7/Factory | Evolved 2 slots: Propulsion x1, Weapon x1 8215 | -7/Factory | Garrison activated, responded to threat 8280 | -7/Factory | Lost 4 parts (1p1n2u) 8281 | -7/Factory | Destroyed 10 combat bots 8355 | -7/Factory | Build established: Hauler-Tank 8469 | -7/Factory | X0-1V1 vaporized surrounding terrain (radius 19) 8513 | -7/Factory | Manually triggered Chute Trap 8513 | -7/Factory | Sucked down chute 8513 | -7/Factory | Entered Waste 8514 | -7/Waste | Joined by Warlord forces that had cleared the area 8524 | -7/Waste | Destroyed 7 combat bots 8718 | -7/Waste | Identified exit to Factory 8718 | -7/Waste | X0-1V1 revealed exit location to -7/Factory 9232 | -7/Waste | X0-1V1 activates XOMVISION 9458 | -7/Waste | Entered Factory 9458 | -7/Factory | Accompanied by 19 allies 9663 | -7/Factory | Lost 5 allies 9804 | -7/Factory | Discovered new exit (range 16) 10863 | -7/Factory | Identified exit to Garrison 10873 | -7/Factory | Entered Garrison 10873 | -7/Garrison | Accompanied by 10 allies 10921 | -7/Garrison | Triggered checkpoint 10928 | -7/Garrison | Learned Factory security intel 11021 | -7/Garrison | Garrison Relay disabled 11025 | -7/Garrison | Garrison Relay disabled 11249 | -7/Garrison | Triggered checkpoint 11251 | -7/Garrison | Triggered checkpoint 11339 | -7/Garrison | Lost 8 allies 11409 | -7/Garrison | Identified exit to Factory 11409 | -7/Garrison | X0-1V1 revealed exit location to -7/Factory 11627 | -7/Garrison | Garrison Relay disabled 11863 | -7/Garrison | X0-1V1 sent hostile Y-45 Defender (x1) 12051 | -7/Garrison | Triggered checkpoint 12156 | -7/Garrison | Garrison Relay disabled 12245 | -7/Garrison | Triggered checkpoint 12309 | -7/Garrison | Discovered exit to Factory (range 12) 12331 | -7/Garrison | Installed Relay Interface Framework 12415 | -7/Garrison | Expanded RIF knowledge: Structural Interface 12953 | -7/Garrison | X0-1V1 activates XOMVISION 13290 | -7/Garrison | Discovered exit to Factory (range 12) 13316 | -7/Garrison | Entered Factory 13698 | -7/Factory | Identified exit to Garrison 13698 | -7/Factory | Entered Garrison 13698 | -7/Garrison | Accompanied by 1 ally 14180 | -7/Garrison | Garrison Relay disabled 14239 | -7/Garrison | X0-1V1 vaporized surrounding terrain (radius 16) 14426 | -7/Garrison | Triggered checkpoint 14442 | -7/Garrison | Triggered checkpoint 14551 | -7/Garrison | Core integrity restored by X0-1V1 (+167) 14558 | -7/Garrison | Triggered checkpoint 14668 | -7/Garrison | Discovered new exit (range 10) 14894 | -7/Garrison | Triggered checkpoint 15041 | -7/Garrison | Discovered new exit (range 5) 15073 | -7/Garrison | Discovered new exit (range 69) 15073 | -7/Garrison | Discovered new exit (range 13) 15073 | -7/Garrison | Discovered new exit (range 36) 15096 | -7/Garrison | Triggered checkpoint 15171 | -7/Garrison | X0-1V1 activates XOMVISION 15277 | -7/Garrison | Garrison Relay disabled 15303 | -7/Garrison | Expanded RIF knowledge: Command Fork 15384 | -7/Garrison | Entered Factory 15384 | -6/Factory | Accompanied by 2 allies 15384 | -6/Factory | Evolved 2 slots: Utility x1, Weapon x1 15421 | -6/Factory | Identified exit to Lower Caves 15691 | -6/Factory | Garrison activated, responded to threat 15703 | -6/Factory | X0-1V1 sent allied H-66 Slayer (x4) 15734 | -6/Factory | First assault squad dispatched 16120 | -6/Factory | Cargo convoy interrupted 16156 | -6/Factory | Entered Lower Caves 16156 | -6/Lower Caves | Accompanied by 4 allies 16158 | -6/Lower Caves | X0-1V1 mutated your Utility slot to Propulsion slot 16436 | -6/Lower Caves | Imp. Trap Scanner reconfigured into Item Mimic 16485 | -6/Lower Caves | Identified exit to Lower Caves 16492 | -6/Lower Caves | Found DCF Scrap (13 items) 16497 | -6/Lower Caves | Learned Factory security intel 17264 | -6/Lower Caves | X0-1V1 upgraded hostiles (x2) 17338 | -6/Lower Caves | X0-1V1 mutated your Utility slot to Weapon slot 17738 | -6/Lower Caves | Entered another Lower Caves area 17740 | -6/Lower Caves | Encountered a Master Thief 17744 | -6/Lower Caves | Field Lobotomy Kit stolen by Master Thief 17783 | -6/Lower Caves | Discovered new exit (range 8) 18085 | -6/Lower Caves | Build established: Scavenger-Tank 18161 | -6/Lower Caves | Attracted the attention of an 0b10 checkpoint 18292 | -6/Lower Caves | Found Prototype Device 18398 | -6/Lower Caves | X0-1V1 sent hostile H-55 Commando (x2) 18421 | -6/Lower Caves | Identified exit to Data Miner 18421 | -6/Lower Caves | X0-1V1 revealed exit location to -6/Data Miner 18594 | -6/Lower Caves | Build established: Hauler-Tank 18994 | -6/Lower Caves | Entered Data Miner 18994 | -6/Data Miner | Discovered new exit (range 6) 19037 | -6/Data Miner | Met Data Miner 19079 | -6/Data Miner | Learned location of Section 7 (-2) 19079 | -6/Data Miner | Acquired the access code to Warlord's prototype stash 19119 | -6/Data Miner | Received God Mode back door access code from Data Miner 19137 | -6/Data Miner | Destroyed Data Miner 19140 | -6/Data Miner | Found Prototype Hackware 19141 | -6/Data Miner | Interfaced with the Data Conduit 19287 | -6/Data Miner | Found Exp. Thermal Shield 19297 | -6/Data Miner | Lost 3 parts (2n1w) 19408 | -6/Data Miner | Found Exp. Thermal Shield 19768 | -6/Data Miner | Entered Proximity Caves 19949 | -5/Proximity Caves | Found Scimitar of Distortion 20306 | -5/Proximity Caves | X0-1V1 activates XOMVISION 20509 | -5/Proximity Caves | Build established: Hauler-Gunner 21297 | -5/Proximity Caves | Learned Factory security intel 21302 | -5/Proximity Caves | Discovered new exit (range 6) 22000 | -5/Proximity Caves | X0-1V1 sent allied Knight (x1) 22012 | -5/Proximity Caves | Lost 3 parts (2p1w) 22059 | -5/Proximity Caves | Entered Factory 22059 | -5/Factory | Accompanied by 1 ally 22059 | -5/Factory | Evolved 2 slots: Utility x2 22060 | -5/Factory | Identified exit to Upper Caves 22062 | -5/Factory | Loaded intel: 277 machine locations 22144 | -5/Factory | Identified exit to Garrison 22144 | -5/Factory | Entered Garrison 22144 | -5/Garrison | Accompanied by 1 ally 22145 | -5/Garrison | Loaded intel: 33 machine locations 22240 | -5/Garrison | Garrison Relay disabled 22282 | -5/Garrison | Build established: Hauler-Tank 22354 | -5/Garrison | Triggered checkpoint 22484 | -5/Garrison | Assimilated X-77 Beamer with FLK Orb 22721 | -5/Garrison | Triggered checkpoint 22823 | -5/Garrison | Garrison Relay disabled 22837 | -5/Garrison | Identified exit to Factory 22837 | -5/Garrison | X0-1V1 revealed exit location to -5/Factory 22905 | -5/Garrison | Phase Generator disabled 22905 | -5/Garrison | Discovered exit to Factory (range 73) 22905 | -5/Garrison | Discovered exit to Factory (range 55) 22905 | -5/Garrison | Discovered exit to Factory (range 29) 22966 | -5/Garrison | Triggered checkpoint 23079 | -5/Garrison | X0-1V1 activates XOMVISION 23088 | -5/Garrison | Triggered checkpoint 23237 | -5/Garrison | Build established: Scavenger-Tank 23286 | -5/Garrison | Destroyed 10 combat bots 23301 | -5/Garrison | Lost 3 allies 23333 | -5/Garrison | Triggered checkpoint 23370 | -5/Garrison | Garrison Relay disabled 23409 | -5/Garrison | Found Siege Articulator 23446 | -5/Garrison | Triggered checkpoint 23449 | -5/Garrison | Spotted Striker 23449 | -5/Garrison | Spotted Striker 23464 | -5/Garrison | Destroyed Striker 23469 | -5/Garrison | Destroyed Striker 23482 | -5/Garrison | X0-1V1 vaporized surrounding terrain (radius 18) 23492 | -5/Garrison | Lost 3 allies 23520 | -5/Garrison | Expanded RIF knowledge: Alert ID Control 23528 | -5/Garrison | Garrison Relay disabled 23530 | -5/Garrison | X0-1V1 mutated your Weapon slot to Propulsion slot 23579 | -5/Garrison | Build established: Hauler-Tank 23650 | -5/Garrison | Triggered checkpoint 23710 | -5/Garrison | Triggered checkpoint 23733 | -5/Garrison | Identified Heart of Steel 23943 | -5/Garrison | X0-1V1 activates XOMVISION 24227 | -5/Garrison | Heart of Steel transformed into Warbot 24456 | -5/Garrison | Entered Factory 24456 | -5/Factory | Accompanied by 1 ally (Warbot) 24458 | -5/Factory | Loaded intel: 254 machine locations 24553 | -5/Factory | Build established: Scavenger-Tank 24640 | -5/Factory | Discovered exit to Upper Caves (range 4) 24904 | -5/Factory | Identified Quantum Router 24988 | -5/Factory | Fabricated Combat Drone Bay? 25056 | -5/Factory | First assault squad dispatched 25089 | -5/Factory | Central database locked down 25143 | -5/Factory | Identified exit to Garrison 25185 | -5/Factory | Entered Garrison 25185 | -5/Garrison | Accompanied by 2 allies (Warbot) 25186 | -5/Garrison | Loaded intel: 34 machine locations 25261 | -5/Garrison | Garrison Relay disabled 25326 | -5/Garrison | Garrison Relay disabled 25383 | -5/Garrison | Triggered checkpoint 25412 | -5/Garrison | X0-1V1 turns hostiles against one another 25435 | -5/Garrison | Destroyed 13 combat bots 25537 | -5/Garrison | Spotted B-86 Titan 25553 | -5/Garrison | Rewired B-90 Cyclops 25555 | -5/Garrison | Spotted B-86 Titan 25563 | -5/Garrison | Allies destroyed B-86 Titan 25582 | -5/Garrison | Destroyed B-86 Titan 25657 | -5/Garrison | Rewired B-75 Beast 25823 | -5/Garrison | Garrison Relay disabled 25865 | -5/Garrison | Discovered new exit (range 13) 25973 | -5/Garrison | Triggered checkpoint 26036 | -5/Garrison | Triggered checkpoint 26107 | -5/Garrison | Discovered new exit (range 15) 26134 | -5/Garrison | X0-1V1 activates XOMVISION 26139 | -5/Garrison | Expanded RIF knowledge: Patrol Navigation 26203 | -5/Garrison | Entered Factory 26203 | -4/Factory | Accompanied by 1 ally 26203 | -4/Factory | Evolved 2 slots: Utility x1, Weapon x1 26204 | -4/Factory | Loaded intel: 259 machine locations 26263 | -4/Factory | Identified exit to Garrison 26291 | -4/Factory | Entered Garrison 26291 | -4/Garrison | Accompanied by 1 ally 26292 | -4/Garrison | Loaded intel: 44 machine locations 26313 | -4/Garrison | Rescued a captive Derelict 26314 | -4/Garrison | Rescued a captive Derelict 26463 | -4/Garrison | Spotted B-86 Titan 26465 | -4/Garrison | Triggered checkpoint 26476 | -4/Garrison | Triggered checkpoint 26477 | -4/Garrison | Weapon slot count temporarily expanded by X0-1V1 (+2) 26482 | -4/Garrison | Destroyed B-86 Titan 26543 | -4/Garrison | Destroyed 7 combat bots 26550 | -4/Garrison | Identified exit to Research 26550 | -4/Garrison | X0-1V1 revealed exit location to -3/Research 26729 | -4/Garrison | Triggered checkpoint 26755 | -4/Garrison | Build established: Scavenger-Executioner 26777 | -4/Garrison | X0-1V1 activates XOMVISION 26894 | -4/Garrison | Expanded RIF knowledge: Hotswap 27015 | -4/Garrison | Triggered checkpoint 27121 | -4/Garrison | X0-1V1 activates XOMVISION 27132 | -4/Garrison | Identified exit to Factory 27132 | -4/Garrison | X0-1V1 revealed exit location to -4/Factory 27212 | -4/Garrison | Discovered exit to Research (range 13) 27216 | -4/Garrison | Spotted B-90 Cyclops 27216 | -4/Garrison | Spotted B-86 Titan 27224 | -4/Garrison | Rewired B-86 Titan 27299 | -4/Garrison | X0-1V1 revealed exit location to -3/Research 27377 | -4/Garrison | System corruption reached 10% 27395 | -4/Garrison | Build established: Scavenger-Tank 27468 | -4/Garrison | Entered Research 27468 | -3/Research | Evolved 2 slots: Power x1, Utility x1 27469 | -3/Research | Identified exit to Armory 27470 | -3/Research | Loaded intel: 107 machine locations 27608 | -3/Research | X0-1V1 activates XOMVISION 27628 | -3/Research | Spotted B-86 Titan 27645 | -3/Research | Allies destroyed B-86 Titan 27956 | -3/Research | Discovered new exit (range 16) 28055 | -3/Research | Identified exit to Research 28055 | -3/Research | X0-1V1 revealed exit location to -2/Research 28068 | -3/Research | Entered Quarantine 28068 | -3/Quarantine | Accompanied by 6 allies 28069 | -3/Quarantine | Loaded intel: 69 machine locations 28092 | -3/Quarantine | Cryocooling Duct disabled 28094 | -3/Quarantine | X0-1V1 activates XOMVISION 28095 | -3/Quarantine | Cryocooling Duct disabled 28107 | -3/Quarantine | Ambient heat levels rising (+20) 28107 | -3/Quarantine | Non-combat units ordered to evacuate 28110 | -3/Quarantine | Ambient heat levels rising (+20) 28110 | -3/Quarantine | Combat units ordered to evacuate 28147 | -3/Quarantine | X0-1V1 rewrote Assassin 8b IFF filter 28210 | -3/Quarantine | Quarantine Guard activated 28278 | -3/Quarantine | Spotted Quarantine Guard 28296 | -3/Quarantine | Destroyed Quarantine Guard 28363 | -3/Quarantine | Found Alien Slashing Weapon 28364 | -3/Quarantine | Spotted Quarantine Guard 28368 | -3/Quarantine | Allies destroyed Quarantine Guard 28389 | -3/Quarantine | Spotted Quarantine Guard 28390 | -3/Quarantine | Destroyed Quarantine Guard 28413 | -3/Quarantine | Discovered exit to Research (range 15) 28413 | -3/Quarantine | Spotted Quarantine Guard 28422 | -3/Quarantine | Destroyed Quarantine Guard 28505 | -3/Quarantine | Found Alien Artifact 28517 | -3/Quarantine | Found Alien Artifact 28640 | -3/Quarantine | Spotted Quarantine Guard 28642 | -3/Quarantine | Allies destroyed Quarantine Guard 28659 | -3/Quarantine | Spotted Quarantine Guard 28665 | -3/Quarantine | Allies destroyed Quarantine Guard 28689 | -3/Quarantine | Spotted Quarantine Guard 28696 | -3/Quarantine | Destroyed Quarantine Guard 28710 | -3/Quarantine | X0-1V1 mutated your Propulsion slot to Weapon slot 28823 | -3/Quarantine | Spotted Quarantine Guard 28849 | -3/Quarantine | Destroyed Quarantine Guard 28884 | -3/Quarantine | Watched by a mysterious "MATRIX" hacker 28907 | -3/Quarantine | Spotted Quarantine Guard 28917 | -3/Quarantine | Allies destroyed Quarantine Guard 28938 | -3/Quarantine | Spotted Quarantine Guard 28951 | -3/Quarantine | Destroyed Quarantine Guard 29015 | -3/Quarantine | Found Alien Reactor 29029 | -3/Quarantine | Build established: Scavenger-Executioner 29366 | -3/Quarantine | X0-1V1 sent you to a vault 29373 | -3/Quarantine | Found Exp. Thermal Defense Suite 29395 | -3/Quarantine | Found Exp. EM Disruption Field 29418 | -3/Quarantine | Spotted Quarantine Guard 29451 | -3/Quarantine | Destroyed Quarantine Guard 29482 | -3/Quarantine | Lost 3 parts (1p1u1w) 30180 | -3/Quarantine | Met incapacitated Sigix Warrior 30180 | -3/Quarantine | Lockdown squad dispatched 30224 | -3/Quarantine | Spotted Lightning 30229 | -3/Quarantine | Spotted Lightning 30231 | -3/Quarantine | Spotted Lightning 30234 | -3/Quarantine | Assimilated Lightning with FLK Orb 30237 | -3/Quarantine | Assimilated Lightning with FLK Orb 30241 | -3/Quarantine | Destroyed Lightning 30318 | -3/Quarantine | Identified Sigix Broadsword 30571 | -3/Quarantine | Spotted Quarantine Guard 30599 | -3/Quarantine | Destroyed Quarantine Guard 30618 | -3/Quarantine | Build established: Scavenger-Tank 31198 | -3/Quarantine | Identified exit to Garrison 31864 | -3/Quarantine | X0-1V1 rewrote Lightning IFF filter 31877 | -3/Quarantine | Destroyed Lightning 32025 | -3/Quarantine | Entered Garrison 32025 | -3/Garrison | Accompanied by 1 ally 32026 | -3/Garrison | Loaded intel: 29 machine locations 32135 | -3/Garrison | System corruption reached 10% 32136 | -3/Garrison | Rewired Striker 32139 | -3/Garrison | Rewired Striker 32142 | -3/Garrison | Spotted B-86 Titan 32166 | -3/Garrison | Destroyed B-86 Titan 32338 | -3/Garrison | X0-1V1 activates XOMVISION 32356 | -3/Garrison | Found embedded Infiltrators 32365 | -3/Garrison | Triggered checkpoint 32413 | -3/Garrison | Expanded RIF knowledge: Robot Detection 32445 | -3/Garrison | Garrison Relay disabled 32494 | -3/Garrison | Discovered exit to Research (range 7) 32629 | -3/Garrison | Triggered checkpoint 32661 | -3/Garrison | Garrison Relay disabled 32724 | -3/Garrison | X0-1V1 rewrote IW-BTV(x) IFF filter 32918 | -3/Garrison | Entered Research 32918 | -2/Research | Accompanied by 1 ally 32918 | -2/Research | Evolved 2 slots: Propulsion x1, Utility x1 32919 | -2/Research | Loaded intel: 128 machine locations 33156 | -2/Research | X0-1V1 sent hostile X-77 Beamer (x3) 33377 | -2/Research | Destroyed 10 combat bots 33418 | -2/Research | First assault squad dispatched 33444 | -2/Research | X0-1V1 enhanced Transport squad support 33616 | -2/Research | Identified Hpw. Transdimensional Reconstructor 33616 | -2/Research | Warped through subspace 33714 | -2/Research | Spotted B-90 Cyclops 33717 | -2/Research | Assimilated B-90 Cyclops with FLK Orb 33901 | -2/Research | Lost 15 parts (3p3n3u6w) 33923 | -2/Research | System corruption reached 10% 33953 | -2/Research | Found Unknown Device 34013 | -2/Research | X0-1V1 announced a LAN party 34081 | -2/Research | Destroyed 7 combat bots 34153 | -2/Research | Destroyed 8 combat bots 34200 | -2/Research | Core integrity restored by X0-1V1 (+397) 34223 | -2/Research | Discovered new exit (range 8) 34261 | -2/Research | Identified exit to Testing 34395 | -2/Research | X0-1V1 whisked you away to safety 34462 | -2/Research | High security lockdown imminent 34515 | -2/Research | Lost 3 parts (1n1u1w) 34517 | -2/Research | X0-1V1 whisked you away to safety 34542 | -2/Research | High security lockdown engaged 34635 | -2/Research | Assimilated H-81 Overseer with FLK Orb 34688 | -2/Research | Spotted Executioner 34693 | -2/Research | X0-1V1 sent allied Lightning (x2) 34729 | -2/Research | Intercept squad dispatched 34733 | -2/Research | Spotted Tracker 34734 | -2/Research | Spotted Tracker 34761 | -2/Research | Entered Testing 34762 | -2/Testing | Loaded intel: 75 machine locations 34785 | -2/Testing | Lost 8 parts (2p2n2u2w) 34882 | -2/Testing | Found Prototype Energy Cannon 34954 | -2/Testing | Found Prototype Ballistic Cannon 34955 | -2/Testing | Identified Perforator 34996 | -2/Testing | X0-1V1 sent allied Wizard (x5) 35011 | -2/Testing | First assault squad dispatched 35124 | -2/Testing | Found Exp. Remote Datajack 35129 | -2/Testing | Lost 4 allies 35183 | -2/Testing | Destroyed 7 combat bots 35235 | -2/Testing | Identified exit to Section 7 35235 | -2/Testing | X0-1V1 revealed exit location to -2/Section 7 35235 | -2/Testing | Found Prototype Protection 35236 | -2/Testing | Identified Hvy. Regenerative Plating 35244 | -2/Testing | Found Prototype Protection 35381 | -2/Testing | X0-1V1 sent allied B-99 Colossus (x1) 35448 | -2/Testing | Destroyed 15 combat bots 35509 | -2/Testing | Found Prototype Energy Gun 35510 | -2/Testing | Identified Warp Gun 35559 | -2/Testing | Scanned by Researcher 35617 | -2/Testing | Destroyed 8 combat bots 35741 | -2/Testing | Spotted Fortress 35757 | -2/Testing | X0-1V1 sent allied B-74 Champion (x3) 35767 | -2/Testing | X0-1V1 sent you to a vault 35788 | -2/Testing | Intercept squad dispatched 35794 | -2/Testing | Spotted Tracker 35795 | -2/Testing | Spotted Tracker 35806 | -2/Testing | Allies destroyed Tracker 35807 | -2/Testing | Spotted Combat Programmer 35808 | -2/Testing | Spotted Combat Programmer 35829 | -2/Testing | Combat Programmer assimilated allied Champion 9a 35837 | -2/Testing | Combat Programmer assimilated allied Champion 9b 35846 | -2/Testing | X0-1V1 sent allied Y-72 Warden (x3) 35848 | -2/Testing | Destroyed Tracker 35852 | -2/Testing | Combat Programmer assimilated allied Y-72 Warden 35854 | -2/Testing | System corruption reached 30% 35870 | -2/Testing | Found Chaos Jack 35875 | -2/Testing | X0-1V1 sent allied Executioner (x1) 35877 | -2/Testing | Allies destroyed Combat Programmer 35899 | -2/Testing | Lost 8 parts (1p2n4u1w) 35938 | -2/Testing | Identified SHELL Armor 35975 | -2/Testing | Lost 4 parts (1n1u2w) 36018 | -2/Testing | High security lockdown imminent 36061 | -2/Testing | Core integrity fell below 50% 36090 | -2/Testing | Lost 7 parts (1p2n1u3w) 36098 | -2/Testing | High security lockdown engaged 36107 | -2/Testing | X0-1V1 whisked you away to safety 36135 | -2/Testing | Core integrity fell below 20% 36158 | -2/Testing | Discovered new exit (range 6) 36162 | -2/Testing | Entered Section 7 36163 | -2/Section 7 | Loaded intel: 130 machine locations 36256 | -2/Section 7 | Found Alien Artifact 36257 | -2/Section 7 | Identified Integrated Dissipator 36257 | -2/Section 7 | Installed Integrated Dissipator, increased core heat dissipation (+20) 36334 | -2/Section 7 | Found Alien Artifact 36377 | -2/Section 7 | Found Alien Artifact 36378 | -2/Section 7 | Identified Integrity Redistributor 36378 | -2/Section 7 | Used Integrity Redistributor, redistributed integrity to core (+91) 36409 | -2/Section 7 | Identified Microwarp Drive 36410 | -2/Section 7 | Discovered new exit (range 3) 36439 | -2/Section 7 | Spotted B-90 Cyclops 36442 | -2/Section 7 | Spotted Alpha 7 36443 | -2/Section 7 | Spotted Alpha 7 36453 | -2/Section 7 | Core integrity restored by X0-1V1 (+219) 36478 | -2/Section 7 | Lost 5 parts (1p3n1w) 36481 | -2/Section 7 | Spotted Executioner 36482 | -2/Section 7 | Spotted Striker 36482 | -2/Section 7 | Spotted Striker 36482 | -2/Section 7 | Spotted Executioner 36492 | -2/Section 7 | Identified Imp. Potential Cannon 36504 | -2/Section 7 | High security lockdown imminent 36526 | -2/Section 7 | Spotted B-99 Colossus 36527 | -2/Section 7 | Destroyed by Alpha 7 with Multirail Last Messages --------------- in your direction (+1056 energy). Slug penetrates R-10 Processor. R-10 Processor suffers critical hit (Destroy). R-10 Processor destroyed. Penetrated by Slug. Acquired 57 matter. Nuclear Pulse Array destroyed. Graphene Brace destroyed. Penetrated by Slug. Slug penetrates Machine. Penetrated by Slug. Slug penetrates Machine. Penetrated by Slug. Imp. Q-thruster destroyed. Slug penetrates Machine. X0-1V1's Piety Tracker destroyed. X0-1V1 is mildly amused. Machine disabled. Penetrated by Slug. X0-1V1 snickers! Map ----- +----------------------------------------------------+ | ?""""""?? ? """ | | """"""""" ??" " | | """""" """"" ??? | | ?""" """"?"?"?" | | """"" "?"?"?" != | | ? " "?"?"?" """ =%* | | " """""""""" =! "" | | """ " " " " """ | | "" T " " " " """"" | | """" " " " "" | | """" "" """" | | """" "" """ "" | | = = """ " | | = " " "" """"""""" | | """" " """""""""" u """"""" | | """ """ "" """""""""" """""""" | | """""" """ 7 """"""" | | """"" | | "" | | """"" "c k | | """"" | | """ | | """"" k | | p | | | | @ | | """""""""" " """"""""" | | """""""""""" ###"""""""" """"""""""""""" | | """""""""""" k ????#""""""""""""""""""""""""" | | ###????????####BB#??????########################## | | ??????????????#??????????????????????????????????? | | ?????????????????????????????????????????????????? | | ?????????????????????????????????????????????????? | | ?????????????????????????????????????????????????? | | ??????????????????????????""""""????"""""????????? | | ??????????????????????????""""""????"""""????????? | | ??????????????????????????""""""????????"????????? | | ?????????????????????????????"??????"""""????????? | | ????????????????????????????????????"""""????????? | | ????????????????????????????????????"""""????????? | | ??????????????????????????"?????????"""""????????? | | ??????????????????????????""????????????"????????? | | ??????????????????????????"??????"??????"????????? | | ??"?"""""??""""???????????""""""""??"""?"????????? | | ??"?????????"""??????????????????????????????????? | | ??"?????????"""??????????????????????????????????? | | ??"""""?????"""??????????????????????????????????? | | ??"""""?????"""??????????????????????????????????? | | ??"""""?????"""??????????????????????????????????? | | ??"""""?????"""??????????????????????????????????? | +----------------------------------------------------+ Best States ------------- Heat Dissipation 173 Energy Generation 89 Energy Capacity 1910 Matter Stores 1000 Matter Capacity 1000 Sight Range 22 Terrain Scan Range 24 Terrain Scan Density 10 Jamming Range 14 Armor Coverage 900 Resistance: KI 20 Resistance: TH 30 Resistance: EM 48 Weapon Cycling 20 Evasion (%) 64 Recoil Reduction 6 Salvage Targeting 5 Offensive Hacking 10 Defensive Hacking 25 Relay Coupler Types 3 Relay Coupler Value 185 Authchip Count 1 Item Schematics ----------------- Huge Storage Unit | -10/Materials | Hacked Combat Drone Bay | -6/Data Miner | Free Lgt. Regenerative Plating | -6/Data Miner | Free Cld. Gravmag System | -6/Data Miner | Free Prc. Matter Filter | -6/Data Miner | Free Imp. KE Penetrator | -6/Data Miner | Free Centrium Wheel | -6/Data Miner | Free Adv. Reaction Control System | -6/Data Miner | Free Force Lance | -6/Data Miner | Free Hvy. Phase Cannon | -6/Data Miner | Free Adv. Coolant Injector | -6/Data Miner | Free Imp. System Guard | -6/Data Miner | Free Impulse Thruster Array | -6/Data Miner | Free Biometal Medium Treads | -6/Data Miner | Free Exp. Matter Compressor | -3/Quarantine | Archive Diametric Drive | -3/Quarantine | Archive Imp. Matter Neutralizer | -3/Quarantine | Archive Prc. Energy Filter | -3/Quarantine | Archive Lgt. Antimatter Cannon | -3/Quarantine | Archive Tiamat Missile Launcher | -3/Quarantine | Archive Exp. Biometal Heavy Treads | -2/Testing | Archive Hds. Centrium Heavy Treads | -2/Testing | Archive Robot Schematics ------------------ M-13 Machinist | -10/Materials | Hacked H-66 Slayer | -6/Data Miner | Free I-47 Archangel | -6/Data Miner | Free B-48 Gladiator | -6/Data Miner | Free X-67 Chaingunner | -6/Data Miner | Free L-61 Swordsman | -6/Data Miner | Free A-27 Freighter | -6/Data Miner | Free S-43 Plague | -3/Quarantine | Archive Fabricated ------------ Combat Drone Bay | x1 | -5/Factory | Authchip Repaired ---------- Lgt. Treads | 7% | -10/Materials Lgt. Treads | 37% | -10/Materials Arm. Treads | 28% | -8/Materials Imp. Assault Rifle | 41% | -8/Materials Imp. Assault Rifle | 32% | -8/Storage Studied --------- Rocket Launcher | -9/Materials | Hacked Lgt. Treads | -9/Materials | Hacked Hvy. Assault Rifle | -9/Materials | Hacked Assault Rifle | -9/Materials | Hacked Missile Launcher | -7/Factory | Hacked Minigun | -7/Factory | Hacked KE Penetrator | -5/Factory | Hacked Arm. Heavy Treads | -3/Quarantine | Hacked Railgun | -3/Quarantine | Hacked Gauss Rifle | -3/Quarantine | Hacked Alien Tech Used ----------------- Sigix Broadsword High-powered Transdimensional Reconstructor Integrated Dissipator Integrity Redistributor Microwarp Drive Achievements -------------- Brother of Steel Challenges ------------ None Game ------ Seed CorePointyCyclogen Manual? 0 Play Time 07:46:54 Cumulative 503.5 hours Start 2026.07.12 @ 12:47:15 End 2026.07.15 @ 15:01:39 Sessions 15 Manual Loads 0 Difficulty Rogue Special Mode None Game No. 297 Rogue 297 Adventurer 0 Explorer 0 Win Type - Total 33 Types 17/1/7/2/1/1/1/1/0/2 Lore% 95 Gallery% 91 Achievement% 83 Wizard Run 0 Options --------- Layout 1 ASCII 0 Keyboard 0 Movement Numpad Keybinds 0 Fullscreen 1 Font 24/Proggy Map View 50x35 Zoom Use 0% Tactical HUD 0 Map Filters NONE Filters NONE Steam 1 RUN: 5b3758ce-cb21-42ae-afc8-cef99ec7f102